Cogmind - Beta 11 @@@ ROGUE MODE // 2022.03.25 @ 20:37:56 Player: Alexbot Result: Escaped! Performance ------------- Evolutions (9) 4500 Regions Visited (34) 6800 Robots Destroyed (349) 1745 Value Destroyed (16331) 16331 Prototype IDs (100) 2000 Alien Tech Used (5) 1000 Bonus (11069) 11069 TOTAL SCORE: 43445 Bonus ------- High Alert Combat Kills 4018 Follower Combat Kills 1960 Entered DSFs 500 Network Hubs Disabled 200 Aligned with FarCom 300 Met Data Miner 300 Met Zhirov 300 Built Enhanced Grunts 300 Found Hidden Lab 3000 Win 3000 Friendly Fire -2809 Cogmind --------- Core Integrity 330/1600 Matter 225/300 Energy 693/700 System Corruption 15% Temperature Cool (4) Movement Treading (250) Ox1 Location To Epsilon Eridani Parts ------- > --- POWER (2) -------- Quantum Reactor > --- PROPULSION (6) --- Armored Heavy Treads > --- UTILITY (14) ----- Advanced Power Amplifier Advanced Cooling System High-capacity Storage Unit Energy Well Advanced Visual Processing Unit Advanced Signal Interpreter Advanced Targeting Computer Precision Energy Filter Quantum Capacitor Advanced ECM Suite AEGIS Remote Shield Quantum Router > --- WEAPON (3) ------- Enhanced Quantum Rifle Gamma Bomb Array > --- INVENTORY (20) --- Improved Antigrav System Improved Gyrokinetic Inverter Large Storage Unit Gravity Neutralizer Core Reset Matrix Gamma Rifle Gamma Rifle Latent Energy Streamer Null Cannon Peak State ------------ > --- POWER ------------ Quantum Reactor Quantum Reactor > --- PROPULSION ------- Armored Heavy Treads Armored Heavy Treads Armored Heavy Treads > --- UTILITY ---------- Advanced Power Amplifier Advanced Cooling System High-capacity Storage Unit Energy Well Advanced Visual Processing Unit Enhanced Optical Array Advanced Signal Interpreter Advanced Targeting Computer Precision Energy Filter Quantum Capacitor Advanced ECM Suite AEGIS Remote Shield Quantum Router > --- WEAPON ----------- Latent Energy Streamer Null Cannon Graviton Cannon > --- INVENTORY -------- Improved Antigrav System Improved Gyrokinetic Inverter Large Storage Unit Gravity Neutralizer Core Reset Matrix Gamma Rifle Gamma Rifle Enhanced Quantum Rifle Gamma Bomb Array [Rating: 185] Favorites ----------- Power Cold Fusion Reactor Engine Deuterium Engine Power Core Enhanced Fission Core Reactor Cold Fusion Reactor Propulsion Light Treads Treads Light Treads Leg Aluminum Leg Wheel Wheel Hover Unit Antigrav Array Flight Unit Improved Flight Unit Utility Hacking Suite Device Advanced Heat Sink Storage High-capacity Storage Unit Processor Advanced Targeting Computer Hackware Hacking Suite Protection Improved Heavy Armor Plating Weapon Improved Assault Rifle Energy Gun Wave Gun Energy Cannon Ion Cannon Ballistic Gun Improved Assault Rifle Ballistic Cannon Magnetic Acceleration Cannon Launcher Mini Grenade Launcher Special Weapon Improved Remote Datajack Impact Weapon Thunder Hammer Slashing Weapon Phasing Sabre Piercing Weapon Enhanced Force Lance Special Melee Weapon Datajack Build | -11 -10 -10 -9 -9 -9 -8 -8 -8 -7 -7 -7 -7 -7 -7 -6 -6 -6 -5 -5 -5 -5 -5 -4 -4 -4 -4 -3 -3 -3 -3 -2 -2 -1 -1 ------- Run | Scr Mat Min Mat Min Exi Min Mat Sto Fac Was Fac Low Low Dat Pro Fac DSF Fac Ext Cet Arc Hub Fac Upp Upp Zhi Pro Res Arm Lab Res Tes Acc Com Slots Evolved 18 | . . . 2 . . . 2 . 2 . . . . . . 2 . 2 . . . . 2 . . . . 2 . . 2 . 2 . Power 1 | . . . . . . . . . . . . . . . . . . . . . . . . . . . . 1 . . . . . . Propulsion 4 | . . . . . . . . . . . . . . . . . . . . . . . 2 . . . . 1 . . . . 1 . Utility 12 | . . . 2 . . . 2 . 2 . . . . . . 2 . 2 . . . . . . . . . . . . 2 . . . Weapon 1 | . . . . . . . . . . . . . . . . . . . . . . . . . . . . . . . . . 1 . Parts Attached 553 | . 3 4 8 8 2 4 5 29 12 2 12 7 2 . 2 . 14 58 33 20 4 6 89 3 1 6 4 15 19 9 85 15 44 28 Power 37 | . 1 1 . . 1 . . 2 1 . . . . . . . . 1 3 2 . . 8 . . . . . 2 . 7 3 3 2 Engine 6 | . 1 1 . . 1 . . 1 . . . . . . . . . . 1 . . . . . . . . . . . 1 . . . Core 9 | . . . . . . . . . . . . . . . . . . . 2 . . . 4 . . . . . 1 . . 1 1 . Reactor 22 | . . . . . . . . 1 1 . . . . . . . . 1 . 2 . . 4 . . . . . 1 . 6 2 2 2 Propulsion 102 | . . . 2 . . 3 . 7 2 . 1 . . . 1 . . 6 5 2 . 1 18 . . 3 . 1 5 1 29 5 7 3 Treads 26 | . . . 2 . . . . 2 . . . . . . . . . 4 4 2 . 1 3 . . . . . . . 4 . 1 3 Leg 5 | . . . . . . . . . . . . . . . . . . . . . . . . . . . . . 3 1 1 . . . Wheel 12 | . . . . . . 3 . 3 2 . 1 . . . 1 . . . . . . . . . . . . . . . 2 . . . Hover 58 | . . . . . . . . 1 . . . . . . . . . 2 1 . . . 15 . . 3 . 1 2 . 22 5 6 . Flight 1 | . . . . . . . . 1 . . . . . . . . . . . . . . . . . . . . . . . . . . Utility 207 | . . 1 2 3 1 . 3 6 6 2 7 6 . . . . 11 27 11 6 1 . 31 1 1 3 1 3 6 4 27 3 21 13 Device 96 | . . 1 . 2 . . . 3 3 1 5 5 . . . . 4 14 4 1 1 . 11 1 1 2 1 1 2 2 13 3 9 6 Storage 24 | . . . . 1 1 . . . 2 . . . . . . . . 3 1 . . . 4 . . . . 1 . . 7 . 1 3 Processor 27 | . . . . . . . 2 . . 1 . 1 . . . . . 1 1 . . . 2 . . . . . 2 . 5 . 8 4 Hackware 20 | . . . 1 . . . . . 1 . . . . . . . 4 4 2 2 . . 2 . . . . . . 1 1 . 2 . Protection 40 | . . . 1 . . . 1 3 . . 2 . . . . . 3 5 3 3 . . 12 . . 1 . 1 2 1 1 . 1 . Artifact . | . . . . . . . . . . . . . . . . . . . . . . . . . . . . . . . . . . . Weapon 207 | . 2 2 4 5 . 1 2 14 3 . 4 1 2 . 1 . 3 24 14 10 3 5 32 2 . . 3 11 6 4 22 4 13 10 Energy Gun 42 | . . . . . . . 1 3 . . . . . . . . . 12 7 1 . 1 3 1 . . . 3 . 1 3 . 3 3 Energy Cannon 65 | . . . . . . . 1 4 2 . 3 . . . 1 . 2 2 1 2 . 3 15 1 . . 3 5 1 . 8 2 4 5 Ballistic Gun 24 | . 1 1 2 3 . . . 2 . . . . . . . . . . . 1 1 1 7 . . . . . . . . 1 4 . Ballistic Cannon 6 | . . . . . . . . . . . . . . . . . . 1 2 . . . . . . . . . 1 . 1 . . 1 Launcher 39 | . 1 1 2 2 . 1 . 4 1 . 1 . 1 . . . 1 6 3 5 . . 2 . . . . 3 1 . 2 . 1 1 Special Weapon 4 | . . . . . . . . . . . . . . . . . . . . 1 1 . 2 . . . . . . . . . . . Impact Weapon 2 | . . . . . . . . . . . . . . . . . . 2 . . . . . . . . . . . . . . . . Slashing Weapon 13 | . . . . . . . . . . . . 1 . . . . . . 1 . 1 . 3 . . . . . 1 . 5 . 1 . Piercing Weapon 9 | . . . . . . . . . . . . . . . . . . . . . . . . . . . . . 2 3 3 1 . . Special Melee Weapon 3 | . . . . . . . . 1 . . . . 1 . . . . 1 . . . . . . . . . . . . . . . . Unidentified Prototypes 46 | . . . 1 . . . . 8 . . . . . . . . . 3 . 6 . 1 3 . . 2 . 2 2 3 6 5 2 2 Corrupted Parts 21 | . . . . . . . . 1 3 . 1 . . . . . . 2 2 3 . 3 1 . . . . . 1 1 2 . . 1 System Corruption 118 | . . . . . . . . 5 14 . 2 . . . . . . 16 6 19 . 12 8 . . . . . 6 7 20 . . 3 Parts Lost 130 | . . . 2 . . 2 . 4 1 . . . . . . . . 13 13 1 . . 23 1 . . . 1 5 . 29 . 26 9 Power 17 | . . . . . . . . 1 . . . . . . . . . 1 1 . . . 2 . . . . . 2 . 5 . 4 1 Propulsion 39 | . . . 1 . . 1 . 1 . . . . . . . . . 3 3 . . . 6 1 . . . . . . 14 . 7 2 Utility 51 | . . . 1 . . 1 . 2 1 . . . . . . . . 5 5 . . . 12 . . . . . 3 . 8 . 10 3 Weapon 23 | . . . . . . . . . . . . . . . . . . 4 4 1 . . 3 . . . . 1 . . 2 . 5 3 Highest Loss Streak 19 | . . . 1 . . 2 . 2 1 . . . . . . . . 5 6 1 . . 19 1 . . . 1 3 . 16 . 9 5 To Critical Strikes 5 | . . . . . . . . . . . . . . . . . . 1 . . . . 1 . . . . . . . 1 . . 2 Average Slot Usage (%) 81 | . 85 91 90 97 100 90 86 98 98 100 100 100 100 84 90 73 83 70 76 87 93 94 65 41 26 39 62 59 60 67 61 90 80 70 Engine 3 | . 14 14 11 11 11 11 9 5 . . . . . . . . . . 1 . . . . . . . . . . . . . . . Reactor 2 | . . . . . . . . 3 7 7 7 7 7 7 7 6 6 4 . 3 5 5 2 . . . . . . . 2 4 5 5 Treads 7 | . . . 11 22 22 16 . 12 14 . . . . . . . . 4 6 5 5 5 . . . . . . . . 3 . . 11 Leg 1 | . 28 28 11 . . . . . . . . . . . . . . . . . . . . . . . . . 3 13 1 . . . Wheel 2 | . . . . . . . 18 5 . 15 15 15 15 15 13 6 6 . . . . . . . . . . . . . . . . . Hover 2 | . . . . . . . . . . . . . . . . . . . . . . . 10 10 5 12 21 21 13 4 6 17 14 . Device 14 | . . 6 11 20 22 17 9 13 14 15 15 15 15 15 15 13 19 12 11 17 17 17 9 12 10 14 21 17 14 18 9 20 14 11 Storage 7 | . 14 14 11 11 11 11 9 9 7 7 7 7 7 7 7 6 6 5 9 11 11 11 5 . . . . . 4 4 7 4 4 7 Processor 8 | . . . . . . . 6 15 7 11 11 13 15 15 15 13 10 3 3 4 . . 2 5 5 5 5 4 12 14 17 27 23 21 Hackware 11 | . . . 9 11 11 11 9 9 14 15 15 15 15 15 15 13 12 15 21 23 23 23 17 . . . . . . . 4 4 9 4 Protection 4 | . . . 3 . . . 7 6 15 10 10 8 7 7 7 6 8 7 5 11 17 17 5 . . 1 5 4 1 1 . . . . Energy Gun 2 | . 14 14 7 . . . 5 2 . . . . . . . . . 4 3 . . . . 5 . . . 1 . . . . 1 3 Energy Cannon 2 | . . . . . . . 3 10 13 15 12 7 7 . 7 6 9 1 1 . . 2 1 . . . 5 1 . . . . 1 2 Ballistic Gun 4 | . 12 13 13 21 22 13 6 3 . . . . . . . . . . . 1 5 5 1 . . . . . . . . . 2 . Launcher 1 | . 1 . . . . 8 3 1 1 . 2 . 4 . . . 1 . . 2 . . . . . . . 1 1 . . . . . Naked Turns . | . . . . . . . . . . . . . . . . . . . . . . . . . . . . . . . . . . . Heaviest Build 150 | 11 13 19 24 28 57 57 66 80 87 81 99 95 87 74 81 81 98 103 85 87 91 96 79 25 19 35 59 71 59 74 94 71 79 150 Greatest Support 180 | 20 20 20 40 40 40 40 20 49 49 29 20 20 20 20 28 28 28 70 70 70 70 80 68 22 11 44 59 71 74 65 173 73 88 180 Greatest Overweight (x) 5 | . . . 1 . 1 5 3 5 2 3 4 4 4 3 4 2 3 3 3 1 1 1 2 1 1 1 1 1 1 1 4 . 1 1 Average Overweight (x) . | . . . . . . 1 2 1 1 2 3 4 4 3 3 2 2 1 . . 1 1 . . 1 . . . . . . . . . Largest Inventory Capacity 25 | . 8 8 8 10 20 20 20 20 20 20 20 20 20 20 20 20 20 20 20 20 20 20 20 5 5 5 5 15 15 15 25 15 15 20 Average Capacity 16 | . 8 8 8 8 11 20 20 20 20 20 20 20 20 20 20 20 20 20 20 20 20 20 15 5 5 5 5 5 15 15 12 15 15 16 Most Carried 20 | . 8 8 8 8 11 14 16 20 20 20 20 20 20 16 18 16 20 20 20 20 20 20 20 5 5 5 5 6 15 15 15 15 15 13 Average Carried 14 | . 7 7 7 7 9 11 13 19 19 19 19 19 19 15 15 16 17 19 18 19 19 19 14 4 4 4 4 4 11 14 11 14 13 9 Final Capacity 20 | 8 8 8 8 10 20 20 20 20 20 20 20 20 20 20 20 20 20 20 20 20 20 20 5 5 5 5 5 15 15 15 15 15 15 20 Final Carried 20 | 6 8 8 8 8 11 13 16 20 20 20 20 20 14 16 16 16 20 19 20 20 20 18 5 5 5 5 5 6 14 15 15 15 9 9 Class Distribution -------------------- 35% | Hacker-Mutant 28% | Scavenger-Mutant 18% | Mutant 6% | Hacker-Skirmisher 4% | Hacker-Assassin Dominant Class ---------------- Mutant | -10/Materials Mutant | -10/Mines Scavenger-Mutant | -9/Materials Scavenger-Mutant | -9/Mines Mutant | -9/Exiles Mutant | -8/Mines Scavenger-Mutant | -8/Materials Scavenger-Mutant | -8/Storage Hacker-Mutant | -7/Factory Hacker-Mutant | -7/Waste Hacker-Mutant | -7/Factory Hacker-Assassin | -7/Lower Caves Hacker-Mutant | -7/Lower Caves Hacker-Mutant | -7/Data Miner Hacker-Mutant | -6/Proximity Caves Hacker-Mutant | -6/Factory Hacker-Mutant | -6/DSF Hacker-Mutant | -5/Factory Hacker-Mutant | -5/Extension Hacker-Mutant | -5/Cetus Hacker-Mutant | -5/Archives Hacker-Mutant | -5/Hub_04(d) Hacker-Mutant | -4/Factory Scavenger-Mutant | -4/Upper Caves Mutant | -4/Upper Caves Scavenger-Mutant | -4/Zhirov Scavenger-Mutant | -3/Proximity Caves Scavenger-Mutant | -3/Research Scavenger-Scout | -3/Armory Scavenger-Assassin | -3/Lab Scavenger-Mutant | -2/Research Scavenger-Ninja | -2/Testing Hacker-Mutant | -1/Access Scavenger-Mutant | -1/Command Resources | -11 -10 -10 -9 -9 -9 -8 -8 -8 -7 -7 -7 -7 -7 -7 -6 -6 -6 -5 -5 -5 -5 -5 -4 -4 -4 -4 -3 -3 -3 -3 -2 -2 -1 -1 ----------- Run | Scr Mat Min Mat Min Exi Min Mat Sto Fac Was Fac Low Low Dat Pro Fac DSF Fac Ext Cet Arc Hub Fac Upp Upp Zhi Pro Res Arm Lab Res Tes Acc Com Matter Collected 9094 | 200 29 160 186 150 . 159 37 697 163 . 160 92 6 . 310 . 180 960 724 338 122 19 1139 48 5 . 48 285 268 . 1140 186 904 379 Remotely . | . . . . . . . . . . . . . . . . . . . . . . . . . . . . . . . . . . . Salvage Created 17167 | . 186 331 425 160 . 234 46 717 381 . 579 26 87 . . . 850 2387 1160 470 . 120 1889 . . . 96 673 437 . 2146 186 2386 1195 Parts 801 | . 18 16 13 14 . 12 4 50 21 . 23 2 3 . . . 32 85 49 26 . 6 85 . . . 1 32 14 . 107 10 143 35 Haulers Intercepted 11 | . . . 2 . . . . 2 . . . . . . . . . . . . . . 1 . . . . 2 . . 3 . 1 . Recyclers Shooed 8 | . . . 1 . . . . . . . 2 . . . . . . 1 . . . . 1 . . . . . . . 2 . 1 . Parts Field Recycled . | . . . . . . . . . . . . . . . . . . . . . . . . . . . . . . . . . . . Retrieved Matter . | . . . . . . . . . . . . . . . . . . . . . . . . . . . . . . . . . . . Parts Self-Destructed 8 | . . . . . . . . . . . . . . . 8 . . . . . . . . . . . . . . . . . . . Prevented 6 | . . . . . . . . . . . . . 1 . . . . . . . . . . 4 . . 1 . . . . . . . Kills | -11 -10 -10 -9 -9 -9 -8 -8 -8 -7 -7 -7 -7 -7 -7 -6 -6 -6 -5 -5 -5 -5 -5 -4 -4 -4 -4 -3 -3 -3 -3 -2 -2 -1 -1 ------- Run | Scr Mat Min Mat Min Exi Min Mat Sto Fac Was Fac Low Low Dat Pro Fac DSF Fac Ext Cet Arc Hub Fac Upp Upp Zhi Pro Res Arm Lab Res Tes Acc Com Combat Hostiles Destroyed 251 | . 5 7 7 7 . 4 1 21 7 . 9 1 3 . . . 8 39 16 10 . 1 27 . . . . 5 8 . 24 . 28 13 Melee 27 | . . . . . . . . . . . . 1 . . . . . . 1 . . . 3 . . . . . 8 . 14 . . . Guns 58 | . 3 5 5 1 . . . 1 . . . . . . . . . 13 1 . . . 4 . . . . 1 . . 2 . 22 . Cannons 33 | . . . . . . . . 3 2 . 2 . . . . . 4 7 3 . . . 5 . . . . . . . 1 . 1 5 AOE 90 | . 2 2 2 6 . 4 1 17 4 . 5 . 3 . . . 2 9 3 9 . . 10 . . . . 2 . . 6 . 3 . Classes Destroyed 21 | . 6 . 2 2 . 2 . 1 1 . . 1 . . . . 1 1 . 1 . 1 1 . . . . . 1 . . . . . Worker 20 | . . . . . . 3 . 2 . . . . . . . . . 2 . . . 1 5 . . . . . . . . 1 4 2 Builder 20 | . 2 . . . . . . . 1 . 2 . . . . . . 1 3 . . . 5 . . . . 1 . . 1 . 4 . Tunneler 6 | . . . . 1 . 2 1 . . . . . . . . . . 1 . . . . . . . . . . . . . . 1 . Hauler 11 | . . . 2 . . . . 2 . . . . . . . . . . . . . . 1 . . . . 2 . . 3 . 1 . Recycler 9 | . 1 . . . . 1 . 1 . . 1 . . . . . . 1 1 . . . . . . . . . . . 1 1 . 1 Mechanic 2 | . . . . . . . . 1 . . . . . . . . . . 1 . . . . . . . . . . . . . . . Operator 6 | . 1 . . . . . . 4 . . . . . . . . . . . . . 1 . . . . . . . . . . . . Watcher 19 | . 1 . 1 . . . . . . . 1 . . . . . . . 1 1 . 1 2 . . . 2 . . . 1 1 5 2 Swarmer 35 | . 3 3 . 4 . . . 4 . . . . 3 . . . 2 . 4 4 . . . . . . . . . . 4 . 4 . Cutter 4 | . . . . . . . . . . . . . . . . . . . . . . . . . . . . . 4 . . . . . Saboteur 1 | . . . . . . . . . . . . . . . . . . 1 . . . . . . . . . . . . . . . . Grunt 104 | . 2 4 5 2 . 3 . 14 6 . 9 . . . . . 4 21 6 4 . . 11 . . . . 2 4 . 3 . 4 . Brawler 5 | . . . . 1 . . . . . . . . . . . . . 1 . 1 . . 1 . . . . . . . 1 . . . Duelist 2 | . . . . . . . . . . . . . . . . . . . . . . . 1 . . . . . . . . . 1 . Protector 1 | . . . . . . . . . . . . . . . . . . . . . . . 1 . . . . . . . . . . . Sentry 22 | . . . 2 . . . . 3 . . . . . . . . . 5 6 . . . 1 . . . . 2 . . . . 3 . Specialist 5 | . . . . . . . . . . . . . . . . . . . . . . 1 . . . . . . . . . . . 4 Hunter 25 | . . . . . . 1 1 . . . . . . . . . 1 . . . . . 6 . . . . 1 . . 6 . 5 4 Programmer 44 | . . . . . . . . . 1 . . . . . . . . 11 . . . . 6 . . . . . . . 10 . 11 5 Heavy 1 | . . . . . . . . . . . . . . . . . 1 . . . . . . . . . . . . . . . . . Cetus Guard 1 | . . . . . . . . . . . . . . . . . . . . 1 . . . . . . . . . . . . . . Enhanced Grunt 1 | . . . . . . . . . . . . . . . . . 1 . . . . . . . . . . . . . . . . . Master Thief 1 | . . . . . . . . . . . . 1 . . . . . . . . . . . . . . . . . . . . . . Thug 1 | . . . . . . . . . . . . . . . . . . . . 1 . . . . . . . . . . . . . . Savage 1 | . . . . . . . . . . . . . . . . . . . . 1 . . . . . . . . . . . . . . Butcher 1 | . . . . . . . . . . . . . . . . . . . . 1 . . . . . . . . . . . . . . Best Kill Streak 15 | . 8 3 3 4 . 5 2 11 6 . 8 1 3 . . . 4 5 11 5 . 4 15 . . . 2 2 2 . 5 2 11 4 Combat Bots Only 8 | . 5 3 3 4 . 3 1 8 6 . 6 1 3 . . . 4 6 6 5 . 1 5 . . . . 1 2 . 4 . 8 3 Max Kills in Single Turn 5 | . 4 1 1 2 . 2 1 2 2 . 3 1 1 . . . 1 4 4 4 . 2 3 . . . 1 2 1 . 5 1 4 1 Gunslinging . | . . . . . . . . . . . . . . . . . . . . . . . . . . . . . . . . . . . Exploded 4 | . 1 1 1 2 . 2 1 2 2 . 2 . 1 . . . 1 4 2 4 . . 3 . . . . 1 . . 4 . 3 . Melee 1 | . . . . . . . . . . . . 1 . . . . . . 1 . . . 1 . . . . . 1 . 1 . . . Uniques/NPCs Destroyed 1 | . . 1 . . . . . . . . . . . . . . . . . . . . . . . . . . . . . . . . YI-UF0 (-10/Mines) Combat | -11 -10 -10 -9 -9 -9 -8 -8 -8 -7 -7 -7 -7 -7 -7 -6 -6 -6 -5 -5 -5 -5 -5 -4 -4 -4 -4 -3 -3 -3 -3 -2 -2 -1 -1 -------- Run | Scr Mat Min Mat Min Exi Min Mat Sto Fac Was Fac Low Low Dat Pro Fac DSF Fac Ext Cet Arc Hub Fac Upp Upp Zhi Pro Res Arm Lab Res Tes Acc Com Damage Taken 30109 | . 64 194 300 117 . 261 76 546 478 . 450 24 75 . 37 . 587 4054 1998 170 52 90 4517 45 21 . 182 825 1332 . 5690 91 3835 3998 Core 5224 | . 19 102 44 . . . . 42 16 . 97 . 30 . . . 69 394 352 2 . 10 1006 . . . . 127 339 . 1280 25 914 356 Absorbed by Shields 1730 | . . . . . . . . . . . . . . . . . . 228 33 19 . 93 70 . . . 24 . . . 780 . 157 326 Reduced by Siege Mode 536 | . . . . . . . . . . . . . . . . . . . . . . 7 89 . . . . . . . 329 . . 111 Redirected to Shielding 238 | . . . . . . . . . . . . . . . . . . . 58 . 24 9 147 . . . . . . . . . . . Regen/Repaired (Parts) 624 | . . . . . . . . . . . . . . . . . . 118 . 27 26 10 126 2 . 36 102 138 39 . . . . . Core Remaining (%) 58 | 100 . 51 . . . 89 . 92 . . . . . . 79 . 91 . . . . 24 . . . . 12 . . 59 . 31 . 20 Volleys Fired 908 | . 12 36 40 10 . 21 5 58 24 . 31 10 11 . . 1 15 124 77 19 7 3 92 8 3 . 6 26 5 . 45 4 114 101 Largest 2 | . 2 2 2 2 . 1 2 2 2 . 2 1 1 . . 1 2 2 2 1 1 2 2 1 1 . 2 2 1 . 1 1 1 2 Hottest 330 | . 70 70 73 46 . 30 138 138 120 . 160 80 80 . . 80 160 225 225 75 35 125 330 80 80 . 150 125 66 . 100 130 130 176 Shots Fired 1123 | . 21 67 74 15 . 21 6 75 33 . 40 10 12 . . 1 27 201 76 17 6 3 95 8 3 . 7 27 5 . 44 4 111 114 Gun 548 | . 18 62 71 10 . 8 1 20 . . . . . . . . . 124 31 1 5 1 33 8 3 . . 14 . . 17 1 83 37 Cannon 409 | . . . . . . . 1 29 27 . 26 10 5 . . 1 21 56 34 2 . 2 53 . . . 7 8 1 . 26 3 23 74 Launcher 160 | . 3 5 3 5 . 13 4 26 6 . 14 . 7 . . . 6 21 11 9 . . 9 . . . . 5 4 . 1 . 5 3 Special 6 | . . . . . . . . . . . . . . . . . . . . 5 1 . . . . . . . . . . . . . Kinetic 276 | . 9 31 41 10 . 8 . 10 . . . . . . . . . 35 20 . 5 1 29 . . . . . 1 . 14 1 50 11 Thermal 516 | . 9 31 30 . . . 2 39 23 . 26 10 5 . . 1 21 114 30 6 . 1 34 8 3 . 4 2 . . 19 3 53 42 Explosive 76 | . 3 5 3 5 . 13 4 26 . . . . . . . . . . 1 7 . . 9 . . . . . . . . . . . Electromagnetic 254 | . . . . . . . . . 10 . 14 . 7 . . . 6 52 25 4 . 1 23 . . . 3 25 4 . 11 . 8 61 Robot Hit Streak 30 | . 4 10 16 10 . 6 8 22 5 . 9 . 2 . . . 8 14 9 10 4 1 12 2 2 . . 5 . . 12 . 30 12 Robot Miss Streak 7 | . 2 3 6 1 . 2 . 1 3 . 3 . 2 . . 3 2 3 3 3 1 1 7 3 1 . . 2 . . 3 . 7 3 Penetration Max 3 | . . . . . . . . . . . . . . . . . . . 1 . . 1 1 . . . . . . . . . 3 . Secondary Targets 1 | . 1 . . . . . . . . . . . . . . . . . . . . . . . . . . . . . . . . . Max Gunslinging Chain 1 | . 1 . . . . . . . . . . . . . . . . . . . . . . . . . . . . . . . . . Capacitor 62 | . . . . . . . . . . . . . . . . . . . . . . . . . . . . . . . . . . 62 Shots Hit Robots 800 | . 12 45 56 10 . 13 2 48 17 . 13 2 7 . . . 17 141 52 13 5 1 77 3 2 . . 14 19 . 82 5 90 54 Core Hits 572 | . 11 22 18 10 . 16 2 54 14 . 17 2 5 . . . 20 72 32 31 1 8 60 . 1 . 7 18 11 . 45 4 76 15 Critical Kills 37 | . . . . . . . . . 1 . . . . . . . 1 . 2 . . . 3 . . . . . . . 1 . 28 1 Critical Parts Destroyed 49 | . . . . . . . . . . . . . . . . . . 1 6 . . . 4 . . . . . . . 4 . 34 . Critical Strikes 125 | . 3 1 1 . . . . . 1 . . 1 . . . . 1 5 11 . . . 8 . . . . . 3 . 22 1 65 2 Burn 9 | . 3 1 1 . . . . . . . . . . . . . . 2 2 . . . . . . . . . . . . . . . Meltdown 3 | . . . . . . . . . 1 . . . . . . . 1 . . . . . . . . . . . . . . . . 1 Destroy 82 | . . . . . . . . . . . . . . . . . . . 5 . . . 7 . . . . . . . 5 . 65 . Blast 4 | . . . . . . . . . . . . . . . . . . . 1 . . . . . . . . . . . 2 . . 1 Corrupt 1 | . . . . . . . . . . . . . . . . . . 1 . . . . . . . . . . . . . . . . Smash 5 | . . . . . . . . . . . . . . . . . . 2 3 . . . . . . . . . . . . . . . Sever 4 | . . . . . . . . . . . . 1 . . . . . . . . . . 1 . . . . . . . 2 . . . Impale 17 | . . . . . . . . . . . . . . . . . . . . . . . . . . . . . 3 . 13 1 . . Melee Attacks 217 | . . . . . . . . 1 . . . 6 2 . . . . 21 14 . . . 24 . . . . . 28 16 71 23 11 . Impact 31 | . . . . . . . . . . . . . . . . . . 20 11 . . . . . . . . . . . . . . . Slashing 65 | . . . . . . . . . . . . 6 . . . . . . 3 . . . 24 . . . . . . . 25 2 5 . Piercing 117 | . . . . . . . . . . . . . . . . . . . . . . . . . . . . . 28 16 46 21 6 . Sneak Attacks 18 | . . . . . . . . 1 . . . . 2 . . . . 2 . . . . 4 . . . . . . . 5 2 2 . Combat Hostiles . | . . . . . . . . . . . . . . . . . . . . . . . . . . . . . . . . . . . Follow-up Attacks 4 | . . . . . . . . . . . . . . . . . . . . . . . . . . . . . . . 4 . . . Damage Inflicted 41688 | . 568 553 818 490 . 774 149 3040 825 . 1263 75 189 . . . 1305 6585 2227 2256 86 940 6103 72 54 . 299 782 1051 . 5116 313 3119 2636 Guns 8610 | . 139 432 677 132 . 105 16 237 . . . . . . . . . 2526 342 22 86 54 918 72 54 . . 136 . . 405 . 1485 772 Cannons 7040 | . . . . . . . 25 513 365 . 175 . 49 . . . 352 1125 690 6 . 36 1248 . . . . 25 . . 504 . 399 1528 Explosions 19649 | . 429 121 141 358 . 669 108 2290 460 . 1088 . 140 . . . 953 2534 769 2183 . 850 3146 . . . 299 621 199 . 1277 . 753 261 Melee 6245 | . . . . . . . . . . . . 75 . . . . . 400 426 . . . 791 . . . . . 852 . 2906 313 482 . Ramming 99 | . . . . . . . . . . . . . . . . . . . . . . . . . . . . . . . 24 . . 75 Kinetic 4333 | . 53 144 405 132 . 105 . 119 . . . . . . . . . 780 354 . 86 54 804 . . . . . . . 240 . 589 468 Thermal 10647 | . 394 288 272 . . . 41 631 365 . 175 . 49 . . . 572 3456 319 264 . 36 1232 72 54 . . . . . 491 . 1288 648 Explosive 7866 | . 121 121 141 358 . 669 108 2290 . . 359 . . . . . . 199 237 1699 . . 1564 . . . . . . . . . . . Electromagnetic 12498 | . . . . . . . . . 460 . 729 . 140 . . . 733 1750 891 293 . 850 1712 . . . 299 782 199 . 1455 . 760 1445 Impact 711 | . . . . . . . . . . . . . . . . . . 400 311 . . . . . . . . . . . . . . . Slashing 2573 | . . . . . . . . . . . . 75 . . . . . . 115 . . . 791 . . . . . . . 1297 . 295 . Piercing 2961 | . . . . . . . . . . . . . . . . . . . . . . . . . . . . . 852 . 1609 313 187 . Highest Corruption 73 | . . . . . . . . 5 27 27 27 24 24 24 24 . . 29 35 57 57 73 46 43 42 42 47 15 21 28 57 60 8 15 Average Corruption 22 | . . . . . . . . 5 12 27 25 24 24 24 24 . . 7 31 51 57 59 22 42 42 42 44 7 21 26 39 59 6 9 Corruption Purged 25 | . . . . . . . . . . . 5 . . . . . . 15 . . . . 4 1 . . . . . . . . . . Corruption Blocked 65 | . . . . . . . . . . . . . . . . . . . . . . . . . . . . . . . . . 15 50 Effects 601 | . . . . . . . . 16 15 6 32 21 18 6 14 . . 84 82 24 11 7 22 8 14 9 12 5 15 19 77 22 29 33 Message Errors 144 | . . . . . . . . 6 1 2 5 4 4 2 4 . . 24 13 5 3 1 7 . 6 5 4 1 7 8 12 6 6 8 Matter Fused 165 | . . . . . . . . 3 4 2 8 7 5 2 3 . . 21 24 4 4 . 9 2 5 2 1 1 3 7 22 7 8 11 Heat Flow Errors 67 | . . . . . . . . 5 3 . 4 1 3 . 2 . . 8 9 4 . 2 1 1 . . 2 . 2 1 13 . 3 3 Energy Discharges 58 | . . . . . . . . 1 1 1 2 3 2 . 2 . . 6 8 3 . 1 . 1 1 2 3 1 . 2 9 2 2 5 Parts Rejected 8 | . . . . . . . . . . . 1 . . . . . . 1 2 1 . . 1 . . . . . 1 . . 1 . . Data Loss (minor) 53 | . . . . . . . . . 5 . 2 2 2 1 2 . . 12 4 2 1 1 1 2 1 . . 2 2 . 4 1 4 2 Data Loss (major) 29 | . . . . . . . . 1 . . 1 2 . 1 . . . 6 5 2 1 . . 1 1 . 1 . . 1 2 . 2 2 Misfires 13 | . . . . . . . . . 1 . 3 . 1 . . . . 2 3 . . . . . . . . . . . 1 1 . 1 Alerts 18 | . . . . . . . . . . 1 1 2 1 . 1 . . 2 4 . . . 1 1 . . . . . . 3 . 1 . Misdirections 20 | . . . . . . . . . . . 1 . . . . . . . 3 1 1 . 1 . . . 1 . . . 9 3 . . Weapon Failures 26 | . . . . . . . . . . . 4 . . . . . . 2 7 2 1 2 1 . . . . . . . 2 1 3 1 Overload Shots 30 | . . . . . . . . . . . . . . . . . . 14 15 . . . 1 . . . . . . . . . . . Effects 1 | . . . . . . . . . . . . . . . . . . 1 . . . . . . . . . . . . . . . . Energy Bleed 1 | . . . . . . . . . . . . . . . . . . 1 . . . . . . . . . . . . . . . . Overflow Damage 1989 | . . . . . . 17 . 15 . . 14 . . . . . . 322 205 97 . 37 324 . . . 8 . 116 . 281 . 191 362 Projectiles 519 | . . . . . . . . . . . 3 . . . . . . 66 2 . . . 44 . . . . . . . . . 42 362 Explosions 555 | . . . . . . 17 . 15 . . 11 . . . . . . 179 . 97 . 37 180 . . . 8 . . . 11 . . . Melee 915 | . . . . . . . . . . . . . . . . . . 77 203 . . . 100 . . . . . 116 . 270 . 149 . Knockbacks 20 | . . . . . . . . . . . . . . . . . . 10 6 . . . . . . . . . . . . . . 4 Impact 3 | . . . . . . . . . . . . . . . . . . 1 2 . . . . . . . . . . . . . . . Kinetic 15 | . . . . . . . . . . . . . . . . . . 8 3 . . . . . . . . . . . . . . 4 Secondary 2 | . . . . . . . . . . . . . . . . . . 1 1 . . . . . . . . . . . . . . . Self-Inflicted Damage 1478 | . 18 40 14 39 . 77 . 16 162 . 41 . . . . . 67 250 13 21 . 52 407 . . . . 23 . . 198 . 31 9 Shots 46 | . 1 1 1 1 . 2 . 1 5 . 3 . . . . . 5 7 1 2 . 1 6 . . . . 2 . . 2 . 3 2 Rammed 5 | . . . . . . . . . . . . . . . . . . . . . . . . . . . . . . . 1 . . 4 Targets Rammed 6 | . . . . . . . . . . . . . . . . . . . . . . . . . . . . . . . 1 . . 5 Kicked . | . . . . . . . . . . . . . . . . . . . . . . . . . . . . . . . . . . . Crushed 1 | . . . . . . . . . . . . . . . . . . . . . . . . . . . . . . . . . . 1 Highest Temperature 468 | . 70 160 14 . . 2 72 278 348 . 233 102 278 . 139 16 60 444 468 191 23 230 390 95 . . 217 . 200 233 232 56 396 367 Average Temperature 97 | . 23 49 2 . . 2 38 67 96 . 72 50 148 . 70 12 20 118 140 78 13 93 120 66 . . 95 . 105 134 95 26 76 157 Received Heat Transfer 3368 | . 6 77 135 18 . 54 . 252 117 . 270 . . . 18 . 141 622 571 61 9 28 342 . . . 18 87 166 . 106 . 270 . Effects 20 | . . . . . . . . . 1 . . . . . . . . 8 2 . . . 5 . . . . . . . . . 1 3 Shutdowns 2 | . . . . . . . . . . . . . . . . . . . . . . . . . . . . . . . . . 1 1 Energy Bleed 4 | . . . . . . . . . 1 . . . . . . . . 2 . . . . 1 . . . . . . . . . . . Interference 10 | . . . . . . . . . . . . . . . . . . 3 1 . . . 4 . . . . . . . . . . 2 Matter Decay 1 | . . . . . . . . . . . . . . . . . . . 1 . . . . . . . . . . . . . . . Short Circuit 1 | . . . . . . . . . . . . . . . . . . 1 . . . . . . . . . . . . . . . . Damage (major) 2 | . . . . . . . . . . . . . . . . . . 2 . . . . . . . . . . . . . . . . Siege Activations 10 | . . . . . . . . . . . . . . . . . . 1 . . 1 1 2 . . . . . . . 2 . . 3 Total Turns 225 | . . . . . . . . . . . . . . . . . . 12 . . 5 7 46 . . . . . . . 117 . . 38 Longest Duration 74 | . . . . . . . . . . . . . . . . . . 12 . . 5 7 30 . . . . . . . 74 . . 17 Robots Corrupted 42 | . . . . . . . . . . . 2 . . . . . 3 7 6 1 . 2 5 . . . 2 3 . . 1 . 2 8 Combat Hostiles 35 | . . . . . . . . . . . 2 . . . . . 1 7 6 1 . 1 5 . . . . 2 . . 1 . 2 7 Parts Fried 89 | . . . . . . . . . 3 . 5 . . . . . 3 12 7 . . 2 14 . . . 3 7 1 . 7 . 5 20 Impact Corruptions 7 | . . . . . . . . . . . . . . . . . . 3 4 . . . . . . . . . . . . . . . Robots Melted 6 | . . . . . . . . . 1 . . . . . . . 1 2 1 . . . . . . . . . . . . . . 1 Combat Hostiles 6 | . . . . . . . . . 1 . . . . . . . 1 2 1 . . . . . . . . . . . . . . 1 Parts Melted 28 | . 4 1 2 . . . . 1 2 . 1 . . . . . 4 10 2 . . . 1 . . . . . . . . . . . Heat Transferred 13352 | . 681 925 888 . . . 74 1036 518 . 300 . 100 . . . 950 4105 692 311 . . 274 111 74 . . . . . 629 . 1384 300 Parts Sabotaged . | . . . . . . . . . . . . . . . . . . . . . . . . . . . . . . . . . . . Parts Stolen 8 | . . . . . . . . . . . . . 3 . . . . . . . . . . 2 3 . . . . . . . . . Parts Stripped . | . . . . . . . . . . . . . . . . . . . . . . . . . . . . . . . . . . . Power Chain Reactions 14 | . . . . . . . . . . . . . 1 . . . 4 1 2 3 . . 2 . . . . . . . . . . 1 Missiles Intercepted . | . . . . . . . . . . . . . . . . . . . . . . . . . . . . . . . . . . . Latent Energy Used 3923 | . . . . . . . . . 621 . . . . . . . . . . 132 . 200 744 . . . 212 945 . . 764 . 184 121 LE Corruption 66 | . . . . . . . . . 10 . . . . . . . . . . 3 . 3 12 . . . 5 15 . . 12 . 3 3 Alert | -11 -10 -10 -9 -9 -9 -8 -8 -8 -7 -7 -7 -7 -7 -7 -6 -6 -6 -5 -5 -5 -5 -5 -4 -4 -4 -4 -3 -3 -3 -3 -2 -2 -1 -1 ------- Run | Scr Mat Min Mat Min Exi Min Mat Sto Fac Was Fac Low Low Dat Pro Fac DSF Fac Ext Cet Arc Hub Fac Upp Upp Zhi Pro Res Arm Lab Res Tes Acc Com Peak Influence 1685 | . 383 373 310 259 . 156 91 574 651 205 496 . . . . 97 363 1412 751 1032 544 777 1118 . . . . 465 546 . 681 600 1685 1313 Initial 1068 | . . 148 86 120 . . 5 38 217 175 143 . . . . 70 67 190 688 367 332 190 380 . . . . 27 243 . . 382 360 1068 Average 424 | . 245 280 224 135 . 10 58 365 360 184 265 . . . . 80 167 504 489 692 476 396 757 . . . . 131 405 . 164 475 953 1130 Maximum Alert Level 5 | . 1 1 1 1 . . . 2 2 1 2 . . . . . 1 4 3 3 2 3 4 . . . . 2 2 . 2 2 5 4 Low Security (%) 32 | . 32 33 48 71 . 100 100 9 . 78 19 . . . . 100 64 32 . . . 54 . . . . . 76 . . 77 . . . Level 1 26 | . 67 66 51 28 . . . 45 51 21 75 . . . . . 35 25 28 12 24 10 5 . . . . 14 41 . 9 23 12 . Level 2 22 | . . . . . . . . 45 48 . 4 . . . . . . 16 63 12 76 . 31 . . . . 9 58 . 13 76 15 . Level 3 10 | . . . . . . . . . . . . . . . . . . 9 8 74 . 34 57 . . . . . . . . . 29 30 Level 4 8 | . . . . . . . . . . . . . . . . . . 15 . . . . 5 . . . . . . . . . 34 69 Level 5 . | . . . . . . . . . . . . . . . . . . . . . . . . . . . . . . . . . 7 . High Security . | . . . . . . . . . . . . . . . . . . . . . . . . . . . . . . . . . . . Max Security . | . . . . . . . . . . . . . . . . . . . . . . . . . . . . . . . . . . . Sterilizations 1 | . . . . . . . . . . . . . . . . . 1 . . . . . . . . . . . . . . . . . Squads Dispatched 92 | . 1 . 2 . . . 1 3 5 . 3 . . . . . 1 27 4 . . 3 7 . . . . 2 4 . 11 2 10 6 Investigation 16 | . . . 1 . . . . 1 . . . . . . . . . 9 1 . . . 1 . . . . . . . 2 . 1 . Extermination 19 | . . . . . . . . . 1 . . . . . . . . 7 . . . . 2 . . . . . . . 4 . 3 2 Reinforcement 31 | . 1 . 1 . . . . 2 3 . 3 . . . . . 1 2 2 . . 3 1 . . . . . 4 . 2 2 1 3 Assault 15 | . . . . . . . . . 1 . . . . . . . . 6 1 . . . 3 . . . . 1 . . . . 2 1 Garrison 11 | . . . . . . . 1 . . . . . . . . . . 3 . . . . . . . . . 1 . . 3 . 3 . Intercept . | . . . . . . . . . . . . . . . . . . . . . . . . . . . . . . . . . . . Searches Triggered 3 | . . . . . . . . . . . . . . . . . . 1 . . . . . . . . . . . . . . 1 1 Data Miner Redirects 16 | . . . . . . . . . . . . . . . . . . 7 1 . . . 2 . . . . 1 . . 1 . 3 1 Construction Impeded 4 | . . . . . . . . . 1 . 1 . . . . . . . 1 . . . . . . . . . . . . . 1 . Haulers Reinforced 1 | . . . . . . . . . . . . . . . . . . . . . . . 1 . . . . . . . . . . . Active Scanning Responses 6 | . . . . . . . . . . . . . . . . . . 6 . . . . . . . . . . . . . . . . Cargo Convoy Interrupts . | . . . . . . . . . . . . . . . . . . . . . . . . . . . . . . . . . . . Stealth | -11 -10 -10 -9 -9 -9 -8 -8 -8 -7 -7 -7 -7 -7 -7 -6 -6 -6 -5 -5 -5 -5 -5 -4 -4 -4 -4 -3 -3 -3 -3 -2 -2 -1 -1 --------- Run | Scr Mat Min Mat Min Exi Min Mat Sto Fac Was Fac Low Low Dat Pro Fac DSF Fac Ext Cet Arc Hub Fac Upp Upp Zhi Pro Res Arm Lab Res Tes Acc Com Distress Signals 21 | . . . 1 . . . 1 1 . . . . . . . . . 1 4 1 . . 2 . . . 1 . 1 . 1 . 6 1 Communications Jammed 18 | . . . . . . . . . . . . . . . . . . . . . . . . . . . . . . . . . 18 . Distress Signals 18 | . . . . . . . . . . . . . . . . . . . . . . . . . . . . . . . . . 18 . Times Spotted 512 | . 10 11 12 9 . 4 5 28 11 4 12 2 6 . 4 . 8 55 40 17 3 7 41 3 5 . 9 16 14 . 52 6 86 32 Peak Tracking Total 11 | . 3 6 3 4 . 3 5 4 7 5 3 1 3 . 4 . 4 6 9 5 2 5 7 2 3 . 6 6 4 . 8 3 11 8 Tactical Retreats 54 | . . 1 . . . . . . 1 . . . . . . . . 7 4 . . . 2 . . . 2 1 3 . 10 1 16 6 Traps | -11 -10 -10 -9 -9 -9 -8 -8 -8 -7 -7 -7 -7 -7 -7 -6 -6 -6 -5 -5 -5 -5 -5 -4 -4 -4 -4 -3 -3 -3 -3 -2 -2 -1 -1 ------- Run | Scr Mat Min Mat Min Exi Min Mat Sto Fac Was Fac Low Low Dat Pro Fac DSF Fac Ext Cet Arc Hub Fac Upp Upp Zhi Pro Res Arm Lab Res Tes Acc Com Traps Triggered 24 | . . . 1 . . . . 1 3 . . . . . . . 1 4 4 . . . . . . . . . . . . 1 3 6 Indirectly 12 | . . . . . . . . . 2 . . . . . . . 1 3 . . . . . . . . . . . . . . 1 5 Trap Hack Attempts . | . . . . . . . . . . . . . . . . . . . . . . . . . . . . . . . . . . . Triggered . | . . . . . . . . . . . . . . . . . . . . . . . . . . . . . . . . . . . Disarmed . | . . . . . . . . . . . . . . . . . . . . . . . . . . . . . . . . . . . Reprogrammed . | . . . . . . . . . . . . . . . . . . . . . . . . . . . . . . . . . . . Reused . | . . . . . . . . . . . . . . . . . . . . . . . . . . . . . . . . . . . Traps Extracted . | . . . . . . . . . . . . . . . . . . . . . . . . . . . . . . . . . . . Installed . | . . . . . . . . . . . . . . . . . . . . . . . . . . . . . . . . . . . Triggered 2 | . . . . . . . . . . . . . . . . . . 1 . . . . . 1 . . . . . . . . . . Machines | -11 -10 -10 -9 -9 -9 -8 -8 -8 -7 -7 -7 -7 -7 -7 -6 -6 -6 -5 -5 -5 -5 -5 -4 -4 -4 -4 -3 -3 -3 -3 -2 -2 -1 -1 ---------- Run | Scr Mat Min Mat Min Exi Min Mat Sto Fac Was Fac Low Low Dat Pro Fac DSF Fac Ext Cet Arc Hub Fac Upp Upp Zhi Pro Res Arm Lab Res Tes Acc Com Machines Disabled 76 | . 6 . . 6 . . . 5 12 . 4 . . . . . . 10 2 3 2 4 4 . . . 1 7 . 3 . 3 1 3 Max in Single Turn 5 | . 5 . . 3 . . . 1 5 . 1 . . . . . . 4 1 1 1 4 2 . . . 1 2 . 1 . 1 1 1 Garrison Access 3 | . . . . . . . . . 1 . . . . . . . . . . . . . . . . . . 1 . . 1 . . . Network Hub 1 | . . . . . . . . . . . . . . . . . . . . . . 1 . . . . . . . . . . . . Energy Cycler 1 | . . . . . . . . . . . . . . . . . . . . . . . . . . . . . . . . . 1 . Machines Sabotaged . | . . . . . . . . . . . . . . . . . . . . . . . . . . . . . . . . . . . Garrisons Compromised . | . . . . . . . . . . . . . . . . . . . . . . . . . . . . . . . . . . . Overloaded Fab Kills . | . . . . . . . . . . . . . . . . . . . . . . . . . . . . . . . . . . . Hacking | -11 -10 -10 -9 -9 -9 -8 -8 -8 -7 -7 -7 -7 -7 -7 -6 -6 -6 -5 -5 -5 -5 -5 -4 -4 -4 -4 -3 -3 -3 -3 -2 -2 -1 -1 --------- Run | Scr Mat Min Mat Min Exi Min Mat Sto Fac Was Fac Low Low Dat Pro Fac DSF Fac Ext Cet Arc Hub Fac Upp Upp Zhi Pro Res Arm Lab Res Tes Acc Com Machines Accessed 64 | . 2 . 2 . 2 1 1 2 . . 4 . 1 4 . 1 . 8 2 1 . . 4 . . 5 2 5 1 . 6 3 5 2 Terminals 35 | . 2 . 2 . . 1 1 2 . . 3 . . . . 1 . 5 2 1 . . 1 . . . 1 4 . . 2 2 3 2 Fabricators 7 | . . . . . . . . . . . 1 . . . . . . 2 . . . . 1 . . . . 1 . . 1 . 1 . Repair Stations 4 | . . . . . . . . . . . . . . . . . . 1 . . . . 1 . . . . . 1 . 1 . . . Recycling Units 1 | . . . . . . . . . . . . . . . . . . . . . . . 1 . . . . . . . . . . . Scanalyzers 2 | . . . . . . . . . . . . . . . . . . . . . . . . . . . . . . . 1 1 . . Garrison Access 2 | . . . . . . . . . . . . . . . . . . . . . . . . . . . . . . . 1 . 1 . Total Hacks 233 | . 3 . 3 . 5 2 3 8 . . 9 . 1 30 . 1 . 36 9 1 . . 11 . . 18 2 24 2 . 25 7 26 7 Successful 130 | . 1 . 2 . 5 1 2 6 . . 3 . 1 30 . 1 . 22 6 . . . 6 . . 18 2 7 1 . 9 . 4 3 Failed 103 | . 2 . 1 . . 1 1 2 . . 6 . . . . . . 14 3 1 . . 5 . . . . 17 1 . 16 7 22 4 Catastrophic 32 | . 1 . 1 . . . . . . . 2 . . . . . . 1 . 1 . . 1 . . . . 3 1 . 5 5 8 3 Database Lockouts . | . . . . . . . . . . . . . . . . . . . . . . . . . . . . . . . . . . . Manual 70 | . 3 . 2 . 1 1 3 3 . . 4 . . . . . . 13 7 1 . . 1 . . . . 6 . . 5 7 8 5 Terminals 126 | . 3 . 3 . . 2 3 8 . . 8 . . . . 1 . 22 9 1 . . 2 . . . 1 22 . . 14 6 14 7 Fabricators 25 | . . . . . . . . . . . 1 . . . . . . 9 . . . . 5 . . . . 2 . . 4 . 4 . Repair Stations 13 | . . . . . . . . . . . . . . . . . . 5 . . . . 3 . . . . . 2 . 3 . . . Recycling Units 1 | . . . . . . . . . . . . . . . . . . . . . . . 1 . . . . . . . . . . . Scanalyzers 4 | . . . . . . . . . . . . . . . . . . . . . . . . . . . . . . . 3 1 . . Garrison Access 9 | . . . . . . . . . . . . . . . . . . . . . . . . . . . . . . . 1 . 8 . Terminal Hacks 95 | . 1 . 2 . 5 1 1 5 . . 2 . 1 30 . 1 . 11 6 . . . . . . 18 2 5 . . 2 . 1 1 Record 22 | . . . . . 4 . . . . . . . . 11 . . . . . . . . . . . 6 1 . . . . . . . Part Schematic 16 | . . . . . . . . . . . . . . 11 . . . 1 . . . . . . . 4 . . . . . . . . Robot Schematic 5 | . . . . . . . . . . . . . . 5 . . . . . . . . . . . . . . . . . . . . Robot Analysis 4 | . . . . . . . . . . . . . . . . . . . . . . . . . . 4 . . . . . . . . Prototype ID Bank 10 | . . . . . . . . 2 . . . . . 3 . . . . . . . . . . . 4 . 1 . . . . . . Open Door 2 | . . . . . . . . . . . . . 1 . . . . . . . . . . . . . 1 . . . . . . . Open DSF 3 | . . . . . . . . . . . 1 . . . . 1 . 1 . . . . . . . . . . . . . . . . Branch Access Points 7 | . 1 . 1 . . . 1 . . . 1 . . . . . . 1 . . . . . . . . . 1 . . . . 1 . Emergency Access Points 2 | . . . . . . . . 1 . . . . . . . . . . . . . . . . . . . . . . . . . 1 Terminal Index 3 | . . . 1 . . . . . . . . . . . . . . 1 1 . . . . . . . . . . . . . . . Fabricator Index 1 | . . . . . . . . . . . . . . . . . . 1 . . . . . . . . . . . . . . . . Alert Level 5 | . . . . . . . . 1 . . . . . . . . . . 1 . . . . . . . . 1 . . 2 . . . Unreport Threat 4 | . . . . . . . . . . . . . . . . . . . 2 . . . . . . . . 2 . . . . . . Locate Traps 2 | . . . . . . . . . . . . . . . . . . 1 1 . . . . . . . . . . . . . . . Dispatch Records 1 | . . . . . . 1 . . . . . . . . . . . . . . . . . . . . . . . . . . . . Investigation Status 1 | . . . . . . . . . . . . . . . . . . . 1 . . . . . . . . . . . . . . . Reinforcement Status 2 | . . . . . . . . 1 . . . . . . . . . 1 . . . . . . . . . . . . . . . . Recall Investigation 2 | . . . . . . . . . . . . . . . . . . 2 . . . . . . . . . . . . . . . . Hauler Manifests 1 | . . . . . . . . . . . . . . . . . . 1 . . . . . . . . . . . . . . . . Zone Layout 1 | . . . . . . . . . . . . . . . . . . 1 . . . . . . . . . . . . . . . . EX-Prototype ID Bank 1 | . . . . . 1 . . . . . . . . . . . . . . . . . . . . . . . . . . . . . Fabricator Hacks 16 | . . . . . . . . . . . 1 . . . . . . 8 . . . . 3 . . . . . . . 2 . 2 . Network Status 2 | . . . . . . . . . . . 1 . . . . . . . . . . . 1 . . . . . . . . . . . Load Schematic 7 | . . . . . . . . . . . . . . . . . . 4 . . . . 1 . . . . . . . 1 . 1 . Build 7 | . . . . . . . . . . . . . . . . . . 4 . . . . 1 . . . . . . . 1 . 1 . Repair Station Hacks 7 | . . . . . . . . . . . . . . . . . . 2 . . . . 2 . . . . . 1 . 2 . . . Scan Component 4 | . . . . . . . . . . . . . . . . . . 1 . . . . 1 . . . . . 1 . 1 . . . Repair 2 | . . . . . . . . . . . . . . . . . . 1 . . . . 1 . . . . . . . . . . . Refit 1 | . . . . . . . . . . . . . . . . . . . . . . . . . . . . . . . 1 . . . Recycling Unit Hacks 1 | . . . . . . . . . . . . . . . . . . . . . . . 1 . . . . . . . . . . . Report Inventory 1 | . . . . . . . . . . . . . . . . . . . . . . . 1 . . . . . . . . . . . Scanalyzer 1 | . . . . . . . . . . . . . . . . . . . . . . . . . . . . . . . 1 . . . Insert Component 1 | . . . . . . . . . . . . . . . . . . . . . . . . . . . . . . . 1 . . . Garrison Access Hacks . | . . . . . . . . . . . . . . . . . . . . . . . . . . . . . . . . . . . Unauthorized Hacks 10 | . . . . . . . 1 1 . . . . . . . . . 1 . . . . . . . . . 2 . . 2 . 1 2 Terminals 9 | . . . . . . . 1 1 . . . . . . . . . 1 . . . . . . . . . 2 . . 1 . 1 2 Track 2 | . . . . . . . . . . . . . . . . . . . . . . . . . . . . 1 . . . . . 1 Assimilate 1 | . . . . . . . . . . . . . . . . . . 1 . . . . . . . . . . . . . . . . Botnet 6 | . . . . . . . 1 1 . . . . . . . . . . . . . . . . . . . 1 . . 1 . 1 1 Fabricators . | . . . . . . . . . . . . . . . . . . . . . . . . . . . . . . . . . . . Repair Stations . | . . . . . . . . . . . . . . . . . . . . . . . . . . . . . . . . . . . Recycling Units . | . . . . . . . . . . . . . . . . . . . . . . . . . . . . . . . . . . . Scanalyzers . | . . . . . . . . . . . . . . . . . . . . . . . . . . . . . . . . . . . Garrison Access 1 | . . . . . . . . . . . . . . . . . . . . . . . . . . . . . . . 1 . . . Jam 1 | . . . . . . . . . . . . . . . . . . . . . . . . . . . . . . . 1 . . . Data Cores Recovered 1 | . . . . . . . . 1 . . . . . . . . . . . . . . . . . . . . . . . . . . Used 1 | . . . . . . . . 1 . . . . . . . . . . . . . . . . . . . . . . . . . . Hacking Detections 40 | . 1 . 2 . . 1 1 2 . . 3 . . . . . . 5 2 1 . . 2 . . . . 5 1 . 5 3 5 1 Full Trace Events 5 | . . . . . . . . . . . . . . . . . . 2 . . . . 1 . . . . . . . 1 . 1 . Feedback Events . | . . . . . . . . . . . . . . . . . . . . . . . . . . . . . . . . . . . Feedback Blocked . | . . . . . . . . . . . . . . . . . . . . . . . . . . . . . . . . . . . Robot Schematics Acquired 5 | . . . . . . . . . . . . . . 5 . . . . . . . . . . . . . . . . . . . . Robots Built 1 | . . . . . . . . . . . . . . . . . . 1 . . . . . . . . . . . . . . . . Authchips 1 | . . . . . . . . . . . . . . . . . . 1 . . . . . . . . . . . . . . . . Time 58 | . . . . . . . . . . . . . . . . . . 58 . . . . . . . . . . . . . . . . Total Robot Build Rating 3 | . . . . . . . . . . . . . . . . . . 3 . . . . . . . . . . . . . . . . Part Schematics Acquired 16 | . . . . . . . . . . . . . . 11 . . . 1 . . . . . . . 4 . . . . . . . . Parts Built 6 | . . . . . . . . . . . . . . . . . . 3 . . . . 1 . . . . . . . 1 . 1 . Authchips 1 | . . . . . . . . . . . . . . . . . . 1 . . . . . . . . . . . . . . . . Time 369 | . . . . . . . . . . . . . . . . . . 205 . . . . 76 . . . . . . . 53 . 35 . Total Part Build Rating 33 | . . . . . . . . . . . . . . . . . . 16 . . . . 5 . . . . . . . 6 . 6 . Parts Repaired 1 | . . . . . . . . . . . . . . . . . . 1 . . . . . . . . . . . . . . . . Time 120 | . . . . . . . . . . . . . . . . . . 40 . . . . 80 . . . . . . . . . . . Parts Recycled . | . . . . . . . . . . . . . . . . . . . . . . . . . . . . . . . . . . . Recycled Matter . | . . . . . . . . . . . . . . . . . . . . . . . . . . . . . . . . . . . Retrieved Matter . | . . . . . . . . . . . . . . . . . . . . . . . . . . . . . . . . . . . Retrieved Components . | . . . . . . . . . . . . . . . . . . . . . . . . . . . . . . . . . . . Parts Scanalyzed . | . . . . . . . . . . . . . . . . . . . . . . . . . . . . . . . . . . . Part Schematics Acquired . | . . . . . . . . . . . . . . . . . . . . . . . . . . . . . . . . . . . Parts Damaged . | . . . . . . . . . . . . . . . . . . . . . . . . . . . . . . . . . . . Bothacking | -11 -10 -10 -9 -9 -9 -8 -8 -8 -7 -7 -7 -7 -7 -7 -6 -6 -6 -5 -5 -5 -5 -5 -4 -4 -4 -4 -3 -3 -3 -3 -2 -2 -1 -1 ------------ Run | Scr Mat Min Mat Min Exi Min Mat Sto Fac Was Fac Low Low Dat Pro Fac DSF Fac Ext Cet Arc Hub Fac Upp Upp Zhi Pro Res Arm Lab Res Tes Acc Com Used RIF Installer . | . . . . . . . . . . . . . . . . . . . . . . . . . . . . . . . . . . . Robots Hacked 4 | . . . . . . . . 1 . . . . 1 . . . . 1 . . 1 . . . . . . . . . . . . . Non-combat 2 | . . . . . . . . . . . . . 1 . . . . 1 . . . . . . . . . . . . . . . . Combat 2 | . . . . . . . . 1 . . . . . . . . . . . . 1 . . . . . . . . . . . . . Robot Hacks Applied 4 | . . . . . . . . 1 . . . . 1 . . . . 1 . . 1 . . . . . . . . . . . . . parse_system 4 | . . . . . . . . 1 . . . . 1 . . . . 1 . . 1 . . . . . . . . . . . . . Relay Couplers Released 3 | . . . . . . . . . 1 . . . . . . . . . . . . . . . . . . 2 . . . . . . Machine Destruction 3 | . . . . . . . . . 1 . . . . . . . . . . . . . . . . . . 2 . . . . . . Fabnet Peak Effective % . | . . . . . . . . . . . . . . . . . . . . . . . . . . . . . . . . . . . Robots Rewired 17 | . . . . . . . . . . . . . . . . . . . 17 . . . . . . . . . . . . . . . Allies Hacked . | . . . . . . . . . . . . . . . . . . . . . . . . . . . . . . . . . . . Hacks Repelled . | . . . . . . . . . . . . . . . . . . . . . . . . . . . . . . . . . . . Allies | -11 -10 -10 -9 -9 -9 -8 -8 -8 -7 -7 -7 -7 -7 -7 -6 -6 -6 -5 -5 -5 -5 -5 -4 -4 -4 -4 -3 -3 -3 -3 -2 -2 -1 -1 -------- Run | Scr Mat Min Mat Min Exi Min Mat Sto Fac Was Fac Low Low Dat Pro Fac DSF Fac Ext Cet Arc Hub Fac Upp Upp Zhi Pro Res Arm Lab Res Tes Acc Com Total Allies 34 | . . . . 2 . . . 1 . . . . . . 1 . . 1 24 5 . . . . . . . . . . . . . . Largest Group 8 | . . . . 2 2 . . 1 1 . . . . . 1 1 1 1 8 6 5 4 3 . . . . . . . . . . . Highest-Rated Group 480 | . . . . 54 54 . . 100 100 . . . . . 96 96 96 26 354 480 480 384 288 . . . . . . . . . . . Highest-Rated Ally 159 | . . . . 31 31 . . 100 100 . . . . . 96 96 96 26 159 159 96 96 96 . . . . . . . . . . . Total Orders 2 | . . . . . . . . . . . . . . . . . . . . 1 . . . . . . . . . . 1 . . . STAY 1 | . . . . . . . . . . . . . . . . . . . . 1 . . . . . . . . . . . . . . EXPLORE 1 | . . . . . . . . . . . . . . . . . . . . . . . . . . . . . . . 1 . . . Ally Attacks 259 | . . . . . . . . 6 . . . . . . 13 6 13 . 133 36 27 13 12 . . . . . . . . . . . Total Damage 7040 | . . . . . . . . 209 . . . . . . 552 136 236 . 2841 1067 1269 366 364 . . . . . . . . . . . Kills 53 | . . . . . . . . 4 . . . . . . 4 1 2 . 22 9 6 4 1 . . . . . . . . . . . Allies Corrupted . | . . . . . . . . . . . . . . . . . . . . . . . . . . . . . . . . . . . Allies Melted 1 | . . . . . . . . . . . . . . . . . . . 1 . . . . . . . . . . . . . . . Intel | -11 -10 -10 -9 -9 -9 -8 -8 -8 -7 -7 -7 -7 -7 -7 -6 -6 -6 -5 -5 -5 -5 -5 -4 -4 -4 -4 -3 -3 -3 -3 -2 -2 -1 -1 ------- Run | Scr Mat Min Mat Min Exi Min Mat Sto Fac Was Fac Low Low Dat Pro Fac DSF Fac Ext Cet Arc Hub Fac Upp Upp Zhi Pro Res Arm Lab Res Tes Acc Com Robot Analysis Total 4 | . . . . . . . . . . . . . . . . . . . . . . . . . . 4 . . . . . . . . Derelict Logs Recovered 7 | . . 1 . 2 . . . . . . . 1 . . 1 . . . . . . . . 2 . . . . . . . . . . Drone Launches 6 | . . . . . . . . . . . . . . . . . . . . . . . . . . . . . . . 6 . . . Drone Recoveries 1 | . . . . . . . . . . . . . . . . . . . . . . . . . . . . . . . 1 . . . Exploration | -11 -10 -10 -9 -9 -9 -8 -8 -8 -7 -7 -7 -7 -7 -7 -6 -6 -6 -5 -5 -5 -5 -5 -4 -4 -4 -4 -3 -3 -3 -3 -2 -2 -1 -1 ------------- Run | Scr Mat Min Mat Min Exi Min Mat Sto Fac Was Fac Low Low Dat Pro Fac DSF Fac Ext Cet Arc Hub Fac Upp Upp Zhi Pro Res Arm Lab Res Tes Acc Com Turns Passed 22275 | . 269 501 385 1261 1069 1372 147 1976 863 147 536 420 313 141 276 91 342 3317 1516 409 150 73 831 170 233 190 204 339 320 436 1507 327 1150 994 Spaces Moved 13219 | 1 192 312 173 749 642 510 104 883 338 119 334 263 199 113 180 69 173 1151 509 124 48 22 563 243 180 282 321 435 204 154 1250 499 1465 415 Core 316 | . . . . . . . . . . . . . . . . . . . . . . . . . . . . . . . 292 . 10 14 Treads 4963 | . . . 80 749 642 460 . 544 303 . . . . . . . . 887 503 124 48 22 . . . . . . . . 195 . 5 401 Legs 814 | 1 192 312 93 . . . . . . . . . . . . . . . . . . . . . . . . . 38 154 24 . . . Wheels 2168 | . . . . . . 50 104 339 35 119 334 263 199 113 180 69 173 187 . . . . . . . . . . . . 3 . . . Hover 4958 | . . . . . . . . . . . . . . . . . . 77 6 . . . 563 243 180 282 321 435 166 . 736 499 1450 . Flight . | . . . . . . . . . . . . . . . . . . . . . . . . . . . . . . . . . . . Fastest Speed 24 | 120 120 120 120 160 160 110 110 95 110 110 125 140 140 125 130 130 130 145 160 160 240 240 50 56 120 40 27 24 27 120 43 43 40 100 Average Speed 129 | 120 120 120 149 160 165 254 121 191 227 118 130 140 140 125 137 130 136 220 225 238 240 240 61 58 120 62 41 38 55 138 74 43 47 168 Slowest Speed 320 | 120 120 120 190 160 240 320 125 240 320 125 140 140 140 125 140 130 145 240 260 240 240 240 161 116 120 120 92 92 190 190 250 48 180 250 Overloaded Moves 22 | . . . . . . . . . . . . . . . . . . . . . . . . . . . 7 5 6 . 4 . . . Propulsion Burnouts 1 | . . . . . . . . . . . . . . . . . . . . . . . . . . . . . . . 1 . . . Robots Hopped . | . . . . . . . . . . . . . . . . . . . . . . . . . . . . . . . . . . . Cave-ins Triggered . | . . . . . . . . . . . . . . . . . . . . . . . . . . . . . . . . . . . Teleports 2 | . . . . . . . . . . . . . . . . . . . . . . . . . . . . . 1 . 1 . . . Exploration Rate (%) 43 | 3 33 54 22 99 91 83 12 75 3 74 13 57 40 74 37 2 87 26 60 54 62 8 10 47 34 62 46 10 6 90 30 54 44 23 Regions Visited 34 Branch Regions 21 Pre-discovered Areas 10 | . . 1 . 2 1 . . . . . . . . 1 . . . . . . . . . 2 . 3 . . . . . . . . Known Exits Taken 14 | . 1 . 1 . . . 1 . . . 1 1 1 1 1 1 . 1 . . . . . . . . . 1 . . 1 1 1 . Unknown Exits Taken 17 | 1 . 1 . 1 1 1 . 1 . . . . . . . . . . 1 1 1 1 1 1 1 1 1 . 1 1 . . . . Scrap Searched 11 | . . 2 . 2 . 1 . . . . . 2 . . 2 . . . . . . . . 2 . . . . . . . . . . Spaces Dug 172 | . . . . . . . . 2 47 . 4 2 . . . . 4 11 25 . . . 13 . . . 2 14 2 . 13 11 15 7 Terrain Destroyed 1332 | . 35 33 5 23 . 84 21 131 197 . 20 8 5 . . . 7 112 40 101 . 175 167 2 1 . 2 33 2 . 36 13 59 20 Melee 36 | . . . . . . . . . . . . 1 . . . . . 7 . . . . 8 . . . . . 2 . 5 10 3 . Projectile 113 | . . . . . . . . 2 1 . 8 7 . . . . . 15 19 . . . 17 2 1 . 2 2 . . 5 3 16 13 AOE 1175 | . 35 33 5 23 . 84 21 129 196 . 12 . 5 . . . 7 90 21 101 . 175 142 . . . . 31 . . 26 . 32 7 Terrain Rammed . | . . . . . . . . . . . . . . . . . . . . . . . . . . . . . . . . . . . Walls Destroyed . | . . . . . . . . . . . . . . . . . . . . . . . . . . . . . . . . . . . Machines Disabled . | . . . . . . . . . . . . . . . . . . . . . . . . . . . . . . . . . . . Actions | -11 -10 -10 -9 -9 -9 -8 -8 -8 -7 -7 -7 -7 -7 -7 -6 -6 -6 -5 -5 -5 -5 -5 -4 -4 -4 -4 -3 -3 -3 -3 -2 -2 -1 -1 --------- Run | Scr Mat Min Mat Min Exi Min Mat Sto Fac Was Fac Low Low Dat Pro Fac DSF Fac Ext Cet Arc Hub Fac Upp Upp Zhi Pro Res Arm Lab Res Tes Acc Com Total 16967 | . 210 377 232 798 650 563 117 1111 397 126 393 293 223 114 210 69 260 1706 774 228 81 37 955 266 196 291 383 576 347 348 1646 562 1778 650 Wait 1425 | . . 21 . 19 . 25 . 82 19 . 3 . . . 24 . 23 305 52 37 17 6 106 . 4 . 50 89 67 164 109 7 103 93 Move 13185 | . 191 311 172 748 641 509 103 882 338 118 333 262 198 112 179 68 172 1150 508 123 47 21 562 242 179 281 320 434 203 153 1249 498 1464 414 Hop . | . . . . . . . . . . . . . . . . . . . . . . . . . . . . . . . . . . . Pick Up 202 | . 3 2 6 5 4 1 2 22 2 3 5 4 4 . 1 . 14 26 11 7 3 . 16 4 4 2 1 1 10 7 15 3 10 4 Fast Attach 223 | . . 2 2 2 . 3 4 14 3 . 3 . . . 1 . 5 10 15 8 . . 21 1 . 6 1 8 11 3 55 11 19 15 Attach 201 | . . . 2 1 . . 1 8 . 2 1 . . . 1 . 7 21 13 9 2 1 52 1 . 1 3 4 8 4 29 2 19 9 Detach 174 | . . . 1 1 . 2 2 9 . . 1 . . 2 2 . 10 7 8 10 . . 41 3 1 . 2 6 9 . 32 3 17 5 Swap 136 | . 3 2 4 5 2 1 . 7 9 . 8 7 2 . . . 2 27 5 3 2 5 16 1 1 . . 3 2 2 4 2 7 4 Drop 235 | . 1 3 5 7 3 1 . 27 2 3 8 4 6 . 2 . 12 15 7 12 3 1 25 6 4 1 . 5 4 2 41 11 14 . Fire 908 | . 12 36 40 10 . 21 5 58 24 . 31 10 11 . . 1 15 124 77 19 7 3 92 8 3 . 6 26 5 . 45 4 114 101 Melee 207 | . . . . . . . . 1 . . . 6 2 . . . . 21 14 . . . 24 . . . . . 28 13 66 21 11 . Ram 1 | . . . . . . . . . . . . . . . . . . . . . . . . . . . . . . . 1 . . . Kick . | . . . . . . . . . . . . . . . . . . . . . . . . . . . . . . . . . . . Crush 5 | . . . . . . . . . . . . . . . . . . . . . . . . . . . . . . . . . . 5 Escape Stasis 2 | . . . . . . . . . . . . . . . . . . . 2 . . . . . . . . . . . . . . . Rewire 63 | . . . . . . . . 1 . . . . . . . . . . 62 . . . . . . . . . . . . . . . Trap . | . . . . . . . . . . . . . . . . . . . . . . . . . . . . . . . . . . . Miscellaneous . | . . . . . . . . . . . . . . . . . . . . . . . . . . . . . . . . . . . Route ------- -11/Scrapyard -10/Materials (discovered 2 exits: *Min x2) -10/Mines -9/Materials (discovered 2 exits: *Min x2) -9/Mines (discovered 3 exits: *Mat x2 / *Exi) -9/Exiles (discovered 2 exits: *Min x2) -8/Mines -8/Materials -8/Storage -7/Factory -7/Waste -7/Factory (discovered 2 exits: *Low x2) -7/Lower Caves -7/Lower Caves -7/Data Miner -6/Proximity Caves -6/Factory -6/DSF -5/Factory (discovered 4 exits: Upp x2 / *Ext x2) -5/Extension (discovered 2 exits: *Fac / *Cet) -5/Cetus -5/Archives -5/Hub_04(d) -4/Factory -4/Upper Caves -4/Upper Caves -4/Zhirov -3/Proximity Caves -3/Research (discovered 3 exits: *Arm / Qua x2) -3/Armory -3/Lab -2/Research -2/Testing -1/Access -1/Command To Epsilon Eridani History --------- Turn | Location | Event 1 | -11/Scrapyard | Discovered new exit (range 0) 1 | -11/Scrapyard | Entered Materials 1 | -10/Materials | Discovered new exit (range 8) 68 | -10/Materials | Discovered new exit (range 16) 205 | -10/Materials | Identified exit to Mines 270 | -10/Materials | Entered Mines 305 | -10/Mines | Build established: Mutant 461 | -10/Mines | Learned Materials terminal intel 485 | -10/Mines | YI-UF0 nonchalantly dropped a Grenade Launcher on the ground 537 | -10/Mines | Destroyed YI-UF0 584 | -10/Mines | Learned location of Storage (-8) 738 | -10/Mines | Discovered new exit (range 8) 741 | -10/Mines | Assembled infested the area 771 | -10/Mines | Entered Materials 771 | -9/Materials | Evolved 2 slots: Utility x2 772 | -9/Materials | Loaded intel: 11 terminal locations 838 | -9/Materials | Identified exit to Mines 1156 | -9/Materials | Entered Mines 1189 | -9/Mines | Build established: Scavenger-Mutant 1227 | -9/Mines | A weapon hastily lodged in a ceiling crevice suddenly fell to the ground 1450 | -9/Mines | Discovered new exit (range 16) 1626 | -9/Mines | Joined a pair of Derelicts in attacking an 0b10 outpost 2152 | -9/Mines | Discovered new exit (range 8) 2401 | -9/Mines | Deemed a non-threat by the Exiles lab entrance 2403 | -9/Mines | Discovered new exit (range 5) 2417 | -9/Mines | Entered Exiles 2417 | -9/Exiles | Accompanied by 2 allies 2447 | -9/Exiles | Led the pair of lost Derelicts to a safe place 2457 | -9/Exiles | Discovered new exit (range 15) 2477 | -9/Exiles | Met 8R-AWN 2513 | -9/Exiles | Met EX-HEX 2582 | -9/Exiles | Met EX-BIN 2609 | -9/Exiles | Aligned with FarCom system 2611 | -9/Exiles | Given EX-Vault access code 2745 | -9/Exiles | Opened EX-Vault 2758 | -9/Exiles | Found Latent Energy Streamer 2767 | -9/Exiles | Found Superbattery 2776 | -9/Exiles | Found AWS/Thermal 2810 | -9/Exiles | Warned to stay clear of 0b10 Research branches 2868 | -9/Exiles | Met EX-DEC 2882 | -9/Exiles | Learned location of Zion (-6) 3011 | -9/Exiles | Visited The Gauntlet 3081 | -9/Exiles | Build established: Mutant 3441 | -9/Exiles | Discovered new exit (range 14) 3486 | -9/Exiles | Stole three prototypes: Superbattery, AWS/Thermal, Latent Energy Streamer 3486 | -9/Exiles | Entered Mines 4822 | -8/Mines | Discovered new exit (range 12) 4858 | -8/Mines | Entered Materials 4858 | -8/Materials | Evolved 2 slots: Utility x2 4878 | -8/Materials | Identified exit to Storage 4993 | -8/Materials | Garrison activated, responded to threat 5005 | -8/Materials | Entered Storage 5112 | -8/Storage | Build established: Scavenger-Mutant 5463 | -8/Storage | Destroyed 8 combat bots 5879 | -8/Storage | Discovered new exit (range 5) 5930 | -8/Storage | Met 01-MTF 6981 | -8/Storage | Entered Factory 6981 | -7/Factory | Accompanied by 1 ally (01-MTF) 6981 | -7/Factory | Evolved 2 slots: Utility x2 6983 | -7/Factory | FarCom data flow suspended 6986 | -7/Factory | 01-MTF left 7036 | -7/Factory | Build established: Mutant 7349 | -7/Factory | Build established: Hacker-Mutant 7482 | -7/Factory | System corruption reached 10% 7844 | -7/Factory | Sucked down chute 7844 | -7/Factory | Entered Waste 7898 | -7/Waste | Spotted C-40 Crusher 7921 | -7/Waste | Spotted C-40 Crusher 7931 | -7/Waste | Spotted C-40 Crusher 7955 | -7/Waste | Spotted C-40 Crusher 7970 | -7/Waste | Discovered new exit (range 16) 7972 | -7/Waste | Spotted C-40 Crusher 7990 | -7/Waste | Identified exit to Factory 7991 | -7/Waste | Entered Factory 8299 | -7/Factory | Identified exit to Lower Caves 8527 | -7/Factory | Entered Lower Caves 8527 | -7/Lower Caves | Spotted ZE-H67(f) 8528 | -7/Lower Caves | Encountered a Master Thief 8542 | -7/Lower Caves | Destroyed ZE-H67(f) 8581 | -7/Lower Caves | Learned Factory security intel 8690 | -7/Lower Caves | Encountered a Warlord checkpoint 8925 | -7/Lower Caves | Build established: Hacker-Assassin 8928 | -7/Lower Caves | Discovered new exit (range 14) 8946 | -7/Lower Caves | Identified exit to Lower Caves 8947 | -7/Lower Caves | Entered another Lower Caves area 8973 | -7/Lower Caves | Found Prototype Device 9044 | -7/Lower Caves | Spotted B-75 Beast 9226 | -7/Lower Caves | Discovered new exit (range 13) 9226 | -7/Lower Caves | Spotted T5-H6Q(f) 9226 | -7/Lower Caves | Spotted JU-WW8(f) 9226 | -7/Lower Caves | Spotted VN-FJM(f) 9227 | -7/Lower Caves | Encountered a Master Thief 9227 | -7/Lower Caves | Encountered a Master Thief 9227 | -7/Lower Caves | Encountered a Master Thief 9228 | -7/Lower Caves | AWS/Thermal stolen by Master Thief 9231 | -7/Lower Caves | Lgt. Treads stolen by Master Thief 9231 | -7/Lower Caves | Prototype Device stolen by Master Thief 9257 | -7/Lower Caves | Identified exit to Data Miner 9260 | -7/Lower Caves | Entered Data Miner 9261 | -7/Data Miner | Discovered new exit (range 6) 9285 | -7/Data Miner | Met Data Miner 9319 | -7/Data Miner | Learned location of Section 7 (-2) 9319 | -7/Data Miner | Acquired the access code to Warlord's prototype stash 9343 | -7/Data Miner | Received God Mode back door access code from Data Miner 9377 | -7/Data Miner | Build established: Hacker-Mutant 9396 | -7/Data Miner | Identified exit to Proximity Caves 9401 | -7/Data Miner | Entered Proximity Caves 9460 | -6/Proximity Caves | Learned Factory stockpile data 9502 | -6/Proximity Caves | Escorted by Enhanced Grunt 9659 | -6/Proximity Caves | Discovered new exit (range 13) 9674 | -6/Proximity Caves | Identified exit to Factory 9677 | -6/Proximity Caves | Entered Factory 9677 | -6/Factory | Accompanied by 1 ally 9677 | -6/Factory | Evolved 2 slots: Utility x2 9767 | -6/Factory | Identified exit to DSF 9768 | -6/Factory | Entered DSF 9768 | -6/DSF | Accompanied by 1 ally 9864 | -6/DSF | Additional patrols routed to DSF 9875 | -6/DSF | Found Prototype Device 10057 | -6/DSF | Sterilization system engaged 10077 | -6/DSF | Ambient heat levels rising (+10) 10090 | -6/DSF | Discovered new exit (range 14) 10092 | -6/DSF | Ambient heat levels rising (+10) 10107 | -6/DSF | Ambient heat levels rising (+10) 10109 | -6/DSF | Identified exit to Factory 10110 | -6/DSF | Entered Factory 10110 | -5/Factory | Evolved 2 slots: Utility x2 10111 | -5/Factory | Identified Active Sensor Suite 10226 | -5/Factory | Repaired Cold Fusion Reactor 10484 | -5/Factory | Incoming investigation squad redirected 10485 | -5/Factory | System corruption reached 10% 11522 | -5/Factory | Build established: Hacker-Assassin 11539 | -5/Factory | Fabricated O-24 Administrator (x1) 11590 | -5/Factory | Garrison activated, responded to threat 11697 | -5/Factory | Fabricated Exp. Targeting Computer? 11945 | -5/Factory | Incoming investigation squad redirected 11951 | -5/Factory | Identified exit to Upper Caves 11951 | -5/Factory | Identified exit to Extension 12210 | -5/Factory | Build established: Hacker-Skirmisher 12510 | -5/Factory | Search patrols dispatched 12810 | -5/Factory | First assault squad dispatched 12828 | -5/Factory | Incoming assault squad redirected 13085 | -5/Factory | Lost 5 parts (1p1n1u2w) 13126 | -5/Factory | Incoming assault squad redirected 13137 | -5/Factory | Incoming assault squad redirected 13177 | -5/Factory | Incoming investigation squad redirected 13204 | -5/Factory | Fabricated Exp. Utility Shielding (x1) 13234 | -5/Factory | Incoming investigation squad redirected 13258 | -5/Factory | Fabricated Adv. Hacking Suite (x1) 13323 | -5/Factory | Build established: Hacker-Mutant 13427 | -5/Factory | Entered Extension 13650 | -5/Extension | Rescued a captive Derelict 13650 | -5/Extension | Rescued a captive Derelict 13720 | -5/Extension | Core integrity fell below 50% 13780 | -5/Extension | Lost 6 parts (2n2u2w) 13964 | -5/Extension | System corruption reached 30% 14489 | -5/Extension | Rescued a captive Derelict 14490 | -5/Extension | Rescued a captive Derelict 14627 | -5/Extension | First assault squad dispatched 14643 | -5/Extension | Incoming assault squad redirected 14680 | -5/Extension | Rescued a captive Derelict 14681 | -5/Extension | Rescued a captive Derelict 14716 | -5/Extension | Rescued A7 14899 | -5/Extension | Discovered new exit (range 10) 14902 | -5/Extension | Discovered new exit (range 6) 14943 | -5/Extension | Entered Cetus 14943 | -5/Cetus | Accompanied by 6 allies (A7) 14948 | -5/Cetus | Acquired a Cetus Manufacturing Module code from A7 14981 | -5/Cetus | Spotted Cetus Guard 14981 | -5/Cetus | Spotted Cetus Guard 14986 | -5/Cetus | Spotted Cetus Guard 14989 | -5/Cetus | Allies destroyed Cetus Guard 14991 | -5/Cetus | Spotted Cetus Guard 15000 | -5/Cetus | Destroyed Cetus Guard 15012 | -5/Cetus | Allies destroyed Cetus Guard 15016 | -5/Cetus | Allies destroyed Cetus Guard 15169 | -5/Cetus | Started Cetus Manufacturing Module 15194 | -5/Cetus | Manufactured an Enhanced Grunt 15217 | -5/Cetus | Discovered new exit (range 15) 15219 | -5/Cetus | Manufactured an Enhanced Grunt 15244 | -5/Cetus | Manufactured an Enhanced Grunt 15269 | -5/Cetus | Manufactured an Enhanced Grunt 15294 | -5/Cetus | Manufactured an Enhanced Grunt 15297 | -5/Cetus | Found Prototype Protection 15297 | -5/Cetus | Identified Med. Regenerative Plating 15300 | -5/Cetus | Cetus Manufacturing Module disabled 15314 | -5/Cetus | Extracted ID and sensor layout for unrecognized location from A7's data core 15352 | -5/Cetus | Entered Archives 15352 | -5/Archives | Accompanied by 5 allies 15462 | -5/Archives | Discovered new exit (range 16) 15502 | -5/Archives | Entered Hub_04(d) 15502 | -5/Hub_04(d) | Accompanied by 4 allies 15535 | -5/Hub_04(d) | Discovered new exit (range 6) 15550 | -5/Hub_04(d) | Network Hub disabled 15575 | -5/Hub_04(d) | Entered Factory 15575 | -4/Factory | Accompanied by 3 allies 15575 | -4/Factory | Evolved 2 slots: Propulsion x2 15867 | -4/Factory | Incoming investigation squad redirected 15916 | -4/Factory | Fabricated Exp. Utility Shielding? 15969 | -4/Factory | System corruption reached 10% 16075 | -4/Factory | First assault squad dispatched 16103 | -4/Factory | Incoming assault squad redirected 16138 | -4/Factory | Core integrity fell below 50% 16154 | -4/Factory | Core integrity fell below 20% 16180 | -4/Factory | Lost 19 parts (2p5n10u2w) 16256 | -4/Factory | System corruption reached 30% 16404 | -4/Factory | Discovered new exit (range 6) 16406 | -4/Factory | Entered Upper Caves 16406 | -4/Upper Caves | Spotted T6-60A(f) 16407 | -4/Upper Caves | Encountered a Master Thief 16410 | -4/Upper Caves | Spotted UO-MMB(f) 16411 | -4/Upper Caves | Encountered a Master Thief 16411 | -4/Upper Caves | Imp. Remote Force Field stolen by Master Thief 16423 | -4/Upper Caves | Imp. Gyrokinetic Inverter stolen by Master Thief 16459 | -4/Upper Caves | Learned location of Quarantine (-3) 16472 | -4/Upper Caves | Spotted B-86 Titan 16526 | -4/Upper Caves | Build established: Scavenger-Mutant 16551 | -4/Upper Caves | Discovered new exit (range 11) 16576 | -4/Upper Caves | Entered another Upper Caves area 16576 | -4/Upper Caves | Spotted YR-G64(f) 16576 | -4/Upper Caves | Spotted 2L-35C(f) 16577 | -4/Upper Caves | Encountered a Master Thief 16577 | -4/Upper Caves | Encountered a Master Thief 16577 | -4/Upper Caves | Superbattery stolen by Master Thief 16577 | -4/Upper Caves | Spotted ZK-IW4(f) 16578 | -4/Upper Caves | Encountered a Master Thief 16583 | -4/Upper Caves | Adv. Variable Charge Gun stolen by Master Thief 16585 | -4/Upper Caves | Antigrav System stolen by Master Thief 16796 | -4/Upper Caves | Discovered new exit (range 12) 16809 | -4/Upper Caves | Entered Zhirov 16809 | -4/Zhirov | Discovered new exit (range 3) 16831 | -4/Zhirov | Met Zhirov 16868 | -4/Zhirov | Found Alien Artifact 16868 | -4/Zhirov | Identified Integrated Dissipator 16868 | -4/Zhirov | Installed Integrated Dissipator, increased core heat dissipation (+20) 16889 | -4/Zhirov | Build established: Mutant 16930 | -4/Zhirov | Found Alien Artifact 16955 | -4/Zhirov | Learned location of Testing (-2) 16955 | -4/Zhirov | Learned location of Command (-1) 16965 | -4/Zhirov | Zhirov requested help retrieving the SGEMP Prototype 16999 | -4/Zhirov | Entered Proximity Caves 17036 | -3/Proximity Caves | Found Alien Artifact 17098 | -3/Proximity Caves | Snuck into a huge 0b10 base via the rear entrance 17199 | -3/Proximity Caves | Discovered new exit (range 3) 17203 | -3/Proximity Caves | Entered Research 17203 | -3/Research | Evolved 2 slots: Power x1, Propulsion x1 17225 | -3/Research | Build established: Scavenger-Mutant 17227 | -3/Research | Identified exit to Armory 17227 | -3/Research | Identified exit to Quarantine 17376 | -3/Research | Garrison activated, responded to threat 17423 | -3/Research | Found Prototype Launcher 17423 | -3/Research | Identified Hellfire Missile Launcher 17427 | -3/Research | Found Prototype Launcher 17427 | -3/Research | Identified Com. Tesla Bomb Launcher 17462 | -3/Research | System corruption reached 10% 17482 | -3/Research | Incoming assault squad redirected 17542 | -3/Research | Entered Armory 17585 | -3/Armory | Found Enh. Force Lance 17587 | -3/Armory | Found Enh. Force Lance 17588 | -3/Armory | Found Enh. Force Lance 17598 | -3/Armory | Identified Dimensional Node Initializer 17598 | -3/Armory | Initialized slip node 17636 | -3/Armory | Found Enh. Force Lance 17742 | -3/Armory | Lost 3 parts (1p2u) 17859 | -3/Armory | Identified Transdimensional Reconstructor 17859 | -3/Armory | Warped through subspace to slip node 17859 | -3/Armory | Discovered new exit (range 1) 17862 | -3/Armory | Entered Lab 17862 | -3/Lab | Discovered new exit (range 9) 17876 | -3/Lab | Hidden lab's door opened automatically 17876 | -3/Lab | Sensor layout match revealed 17877 | -3/Lab | Gained access to the hidden lab's interior 17928 | -3/Lab | Found Alien Artifact 17950 | -3/Lab | Found Transdimensional Reconstructor 17954 | -3/Lab | Found Alien Artifact 17968 | -3/Lab | Found Alien Artifact 18018 | -3/Lab | Found Prototype Special Weapon 18035 | -3/Lab | Build established: Scavenger-Assassin 18079 | -3/Lab | Found Prototype Energy Gun 18080 | -3/Lab | Identified Tachyon Dispersion Ray 18145 | -3/Lab | Found Prototype Energy Cannon 18193 | -3/Lab | Found Prototype Device 18193 | -3/Lab | Identified AEGIS Remote Shield 18207 | -3/Lab | Found Prototype Hackware 18207 | -3/Lab | Identified Quantum Router 18298 | -3/Lab | Entered Research 18298 | -2/Research | Evolved 2 slots: Utility x2 18459 | -2/Research | Identified Warp Cannon 18530 | -2/Research | Fabricated Adv. Hacking Suite (x1) 18615 | -2/Research | System corruption reached 10% 18661 | -2/Research | Garrison activated, responded to threat 18701 | -2/Research | Lost 16 parts (2p9n4u1w) 18753 | -2/Research | Warped through subspace 18783 | -2/Research | Lost 4 parts (2n1u1w) 18805 | -2/Research | Core integrity fell below 50% 18846 | -2/Research | Build established: Hacker-Mutant 18874 | -2/Research | Identified Core Regenerator 18874 | -2/Research | Used Core Regenerator, restored core integrity (+362) 18897 | -2/Research | Identified Integrated Reactor 18897 | -2/Research | Installed Integrated Reactor, increased core energy generation (+10) 18912 | -2/Research | Found Prototype Launcher 18912 | -2/Research | Identified Point Singularity Launcher 18927 | -2/Research | System corruption reached 30% 19004 | -2/Research | Found Prototype Slashing Weapon 19004 | -2/Research | Identified Centrium Greatsword 19504 | -2/Research | Build established: Scavenger-Mutant 19605 | -2/Research | Spotted B-90 Cyclops 19631 | -2/Research | Incoming investigation squad redirected 19645 | -2/Research | Lost 3 parts (1p2u) 19660 | -2/Research | Identified Core Reset Matrix 19788 | -2/Research | Discovered new exit (range 17) 19804 | -2/Research | Identified exit to Testing 19805 | -2/Research | Entered Testing 19944 | -2/Testing | Spotted Striker 19944 | -2/Testing | Spotted Striker 19995 | -2/Testing | Found Prototype Energy Cannon 19995 | -2/Testing | Identified Null Cannon 20058 | -2/Testing | Spotted Superbehemoth 20063 | -2/Testing | Discovered new exit (range 18) 20087 | -2/Testing | Found Prototype Ballistic Gun 20087 | -2/Testing | Identified Hyp. Multirail 20126 | -2/Testing | Found Prototype Energy Gun 20131 | -2/Testing | Identified exit to Access 20132 | -2/Testing | Entered Access 20132 | -1/Access | Evolved 2 slots: Propulsion x1, Weapon x1 20170 | -1/Access | Incoming investigation squad redirected 20187 | -1/Access | Fabricated Adv. Hacking Suite? 20195 | -1/Access | Identified Warp Gun 20210 | -1/Access | Found Antimissile System 20266 | -1/Access | Spotted B-99 Colossus 20376 | -1/Access | Lost 4 parts (1n2u1w) 20382 | -1/Access | First assault squad dispatched 20477 | -1/Access | Identified exit to Command 20522 | -1/Access | Energy Cycler disabled 20618 | -1/Access | Build established: Hacker-Mutant 20641 | -1/Access | Incoming assault squad redirected 20675 | -1/Access | Search patrols dispatched 20809 | -1/Access | Garrison activated, responded to threat 20835 | -1/Access | Found Gamma Bomb Array 20842 | -1/Access | Spotted B-99 Colossus 20843 | -1/Access | Destroyed 8 combat bots 20852 | -1/Access | Lost 3 parts (2u1w) 21194 | -1/Access | Incoming assault squad redirected 21220 | -1/Access | Lost 4 parts (2n2u) 21266 | -1/Access | Spotted B-99 Colossus 21269 | -1/Access | Spotted B-99 Colossus 21273 | -1/Access | Core integrity fell below 50% 21282 | -1/Access | Entered Command 21304 | -1/Command | Lost 9 parts (4p2n2u1w) 21576 | -1/Command | Search patrols dispatched 21673 | -1/Command | Found Corrupted Quantum Capacitor 21683 | -1/Command | Lost 3 parts (1u2w) 21810 | -1/Command | System corruption reached 10% 21917 | -1/Command | Build established: Scavenger-Mutant 22076 | -1/Command | First assault squad dispatched 22101 | -1/Command | Incoming assault squad redirected 22251 | -1/Command | Spotted B-99 Colossus 22255 | -1/Command | Discovered new exit (range 13) 22258 | -1/Command | Spotted B-99 Colossus 22263 | -1/Command | Spotted Executioner 22263 | -1/Command | Spotted Striker 22263 | -1/Command | Spotted Alpha 7 22263 | -1/Command | Spotted Executioner 22263 | -1/Command | Spotted Executioner 22264 | -1/Command | Spotted Executioner 22272 | -1/Command | Spotted Striker 22272 | -1/Command | Spotted Alpha 7 22276 | *** | Escaped! Last Messages --------------- 22271_ Field strength at 25. 22272_ Penetrated by Slug. 22272_ Slug penetrates Access Shell. 22272_ Slug penetrates Wall. 22272_ Stasis field depleted. 22273_ Penetrated by Slug. 22273_ Critical hit (Destroy). 22273_ Arm. Heavy Treads destroyed. 22273_ Slug penetrates Wall. 22274_ Penetrated by Slug. 22274_ Critical hit (Destroy). 22274_ Graviton Cannon destroyed. 22274_ Slug penetrates Wall. 22274_ Penetrated by Slug. 22274_ Slug penetrates Access Shell. 22274_ Penetrated by Slug. 22274_ Slug penetrates Wall. 22274_ Slug penetrates Access Shell. 22275_ Executioner Prototype Leg blasted off. 22275_ Arm. Heavy Treads destroyed. Map ----- +----------------------------------------------------+ | ?????????????????????????????????????????????????? | | ?????????????????????????????????????????????????? | | ?????????????????????????????????????????????????? | | ?????????????????????????????????????????????????? | | ?????????????????????????????????????????????????? | | ?????????????????????????????????????????????????? | | ?????????????????????????????????????????????????? | | ?????????????????????????????????????????????????? | | ?????????????????????????????????????????????????? | | ?????????????????????????????????????????????????# | | ????????????????????????????????????????????????? | | ????????????????????????????????????????????????? | | ????????????????????????????????????????????????? | | ??????????????????H?????????????????????????????? | | ??????????????????????????????????######????????? | | ??????????????????????????????????# #????????# | | ??????????????????????????????????# #????????# | | ??????????????????????????????????# # ???????# | | ???????????????????????????????##?? # ######## | | ???????????????????############;#?? / | | ???????????????????? #?? # | | ????????????????????? #??? # | | ?????????????????????? #??? # | | ???????????????????????" %% " #??? # | | ???????????????????????" % #???#/## | | ???????????????????????" @" % #???# ## | | ???????????????????????" "" ##### ########/## | | ???????????????????????" % K;# !!! # | | ???????????????????????""" EEBB % % !! % # | | ???????????????????# ^ B E=BB#### !!% " | | ???????????????????# BE7 #?# % k % # | | ???????????????????# #?## " | | ???????????????????#### ####??###/####""""""/ | | ?????????????????????# ???????# #??# | | ?????????????????????## #???????# #??# | | ?????????????????????# ???????# #??# | | ?????????????????????## #???????# #??#= | | ?????????????????????# K???????# #??# | | ?????????????????????## #???????# #??# | | ?????????????????????? ^ 7???????# #??# | | ?????????????????????## #???????# #??# | | ??????????????????????# #???????? ???# | | ??????????????????????##++++##???????? ???# | | ???????????????????????# #?????????#???# | | ???????????????????????# #?????????????# | | ?????????????????####### ###################### | | ???????????????? | | ???????????????? ########+# | | ???????????????? #?# | | ???????????????? """" #?# | +----------------------------------------------------+ Best States ------------- Heat Dissipation 103 Coolant Potential 80 Energy Generation 77 Energy Capacity 1850 Matter Stores 300 Matter Capacity 300 Sight Range 22 Robot Scan Range 20 Terrain Scan Range 16 Terrain Scan Density 210 ECM Strength 2 Jamming Range 12 Power Amplification 30 Additional Mass Support 16 EM Shielding 3 Corruption Block 50 Armor Coverage 1200 Resistance: KI 30 Utility Shielding 90 Weapon Cycling 25 Phase Shifting 10 Evasion (%) 74 Targeting Accuracy 22 Melee Accuracy 5 Launcher Accuracy 30 Target Analysis 11 Core Analysis 6 Armor Integrity Analysis 30 Recoil Reduction 6 Energy Filtering 50 Particle Charging 20 Kinecelleration 40 Offensive Hacking 36 Defensive Hacking 35 Authchip Count 6 Item Schematics ----------------- Combat Drone Bay | -7/Data Miner | Free Lgt. Regenerative Plating | -7/Data Miner | Free Cld. Cesium-ion Thruster | -7/Data Miner | Free Exp. Targeting Computer | -7/Data Miner | Free Gui. EMP Blaster | -7/Data Miner | Free Antigrav System | -7/Data Miner | Free Adv. Hacking Suite | -7/Data Miner | Free KE Penetrator | -7/Data Miner | Free Adv. Terrain Scanner | -7/Data Miner | Free Adv. Salvage Targeting Computer | -7/Data Miner | Free Imp. Antigrav System | -7/Data Miner | Free Exp. Utility Shielding | -5/Factory | Hacked Assault Drone Bay | -4/Zhirov | Free Exp. Heat Sink | -4/Zhirov | Free Exp. Optical Array | -4/Zhirov | Free Imp. Arc Thrower | -4/Zhirov | Free Robot Schematics ------------------ G-47 Trooper | -7/Data Miner | Free W-25 Informer | -7/Data Miner | Free O-24 Administrator | -7/Data Miner | Free Y-54 Guardian | -7/Data Miner | Free A-15 Conveyor | -7/Data Miner | Free Fabricated ------------ O-24 Administrator | x1 | -5/Factory | Authchip Exp. Targeting Computer | x1 | -5/Factory Exp. Utility Shielding | x1 | -5/Factory | Authchip Adv. Hacking Suite | x1 | -5/Factory Exp. Utility Shielding | x1 | -4/Factory Adv. Hacking Suite | x1 | -2/Research Adv. Hacking Suite | x1 | -1/Access Alien Tech Used ----------------- Integrated Dissipator Dimensional Node Initializer Transdimensional Reconstructor Core Regenerator Integrated Reactor Achievements -------------- None Challenges ------------ None Game ------ Seed ScatterEtherialBox Manual? 0 Play Time 05:23:57 Cumulative 1016.5 hours Start 2022.03.19 @ 11:58:58 End 2022.03.25 @ 20:37:56 Sessions 17 Manual Loads 0 Difficulty Rogue Special Mode None Game No. 304 Rogue 304 Adventurer 0 Explorer 0 Win Type 0 Total 71 Types 44/4/8/6/4/1/2/1/1 Lore% 91 Gallery% 92 Achievement% 98 Wizard Run 0 Options --------- ASCII 0 Keyboard 1 Movement Arrows Keybinds 0 Fullscreen 1 Font 24/Smallcaps Map View 76x56 Tactical HUD 1 Map Filters NONE Filters NONE Steam 1 RUN: ff624abb-0d13-4811-903a-00141b544cc9